Workbook

Sheet Лист1
A3: Сумма по полю Сумма | E3: Период
A4: aaa | B4: Организация | C4: Объект | D4: ЦФО | E4: янв | F4: фев | G4: мар | H4: апр | I4: май | J4: июн | K4: июл | L4: авг | M4: сен | N4: окт | O4: ноя | P4: дек | Q4: Общий итог
A5: (пусто) | E5: 5662643509 | F5: 2583 | H5: 254444 | L5: 173561 | O5: 324000 | P5: 166254 | Q5: 5663564351
A6: (пусто) | B6: Орг 1 | C6: Объект 1 | D6: Заработная плата ИТР | E6: 1994508.54 | Q6: 1994508.54
A7: (пусто) | B7: Орг 1 | C7: Объект 1 | D7: Налоги | E7: 5680.5 | Q7: 5680.5
A8: (пусто) | B8: Орг 1 | C8: Объект 1 | D8: Отдел 1 | P8: 31400 | Q8: 31400
A9: (пусто) | B9: Орг 1 | C9: Объект 1 | D9: СМР | E9: 1167880.5 | Q9: 1167880.5
A10: (пусто) | B10: Орг 1 | C10: Объект 1 | D10: Тендерный отдел | E10: 540000 | Q10: 540000
A11: (пусто) | B11: Орг 1 | C11: Объект 2 | D11: Заработная плата ИТР | F11: 2583 | Q11: 2583
A12: (пусто) | B12: Орг 1 | C12: Объект 2 | D12: Налоги | E12: 9864024.42 | Q12: 9864024.42
A13: (пусто) | B13: Орг 1 | C13: Объект 2 | D13: Отдел 1 | P13: 21400 | Q13: 21400
A14: (пусто) | B14: Орг 1 | C14: Объект 2 | D14: СМР | E14: 28914 | Q14: 28914
A15: (пусто) | B15: Орг 1 | C15: Объект 2 | D15: Тендерный отдел | E15: 24000 | Q15: 24000
A16: (пусто) | B16: Орг 2 | C16: Объект 1 | D16: Заработная плата ИТР | E16: 1000 | Q16: 1000
A17: (пусто) | B17: Орг 2 | C17: Объект 1 | D17: Налоги | L17: 5680.5 | Q17: 5680.5
A18: (пусто) | B18: Орг 2 | C18: Объект 1 | D18: Отдел 1 | P18: 51400 | Q18: 51400
A19: (пусто) | B19: Орг 2 | C19: Объект 1 | D19: СМР | L19: 167880.5 | Q19: 167880.5
A20: (пусто) | B20: Орг 2 | C20: Объект 1 | D20: Тендерный отдел | E20: 40000 | Q20: 40000
A21: (пусто) | B21: Орг 2 | C21: Объект 2 | D21: Заработная плата ИТР | H21: 254444 | Q21: 254444
A22: (пусто) | B22: Орг 2 | C22: Объект 2 | D22: Налоги | E22: 864024.42 | Q22: 864024.42
A23: (пусто) | B23: Орг 2 | C23: Объект 2 | D23: Отдел 1 | P23: 61400 | Q23: 61400
A24: (пусто) | B24: Орг 2 | C24: Объект 2 | D24: СМР | E24: 128914 | Q24: 128914
A25: (пусто) | B25: Орг 2 | C25: Объект 2 | D25: Тендерный отдел | O25: 324000 | Q25: 324000
A26: (пусто) | B26: erg2 | C26: ergerg2 | D26: jnltk sd | P26: 654 | Q26: 654
A27: (пусто) | B27: tyjety2 | C27: reyqerty2 | D27: wthqeth | E27: 5647984563 | Q27: 5647984563

Sheet 2018
B1: РАСХОД с | E1: ВСЕГО по листу | F1: =SUM(F4:F142) -> 5663564351
E2: Сумма отобранных значений | F2: =SUBTOTAL(9,F4:F142) -> 5663564351
A3: aaa | B3: ЦФО | C3: № | D3: Организация | E3: Объект | F3: Сумма | G3: Период
B4: Заработная плата ИТР | C4: 1.1 | D4: Орг 1 | E4: Объект 1 | F4: 1994508.54 | G4: 2018-01-09
B5: Заработная плата ИТР | C5: 1.1 | D5: Орг 1 | E5: Объект 2 | F5: 2583 | G5: 2018-02-09
B6: Заработная плата ИТР | C6: 1.1 | D6: Орг 2 | E6: Объект 1 | F6: 1000 | G6: 2018-01-09
B7: Заработная плата ИТР | C7: 1.1 | D7: Орг 2 | E7: Объект 2 | F7: 254444 | G7: 2018-04-09
B8: Налоги | C8: 1.2 | D8: Орг 1 | E8: Объект 1 | F8: 5680.5 | G8: 2018-01-12
B9: Налоги | C9: 1.2 | D9: Орг 1 | E9: Объект 2 | F9: 9864024.42 | G9: 2018-01-12
B10: Налоги | C10: 1.2 | D10: Орг 2 | E10: Объект 1 | F10: 5680.5 | G10: 2018-08-12
B11: Налоги | C11: 1.2 | D11: Орг 2 | E11: Объект 2 | F11: 864024.42 | G11: 2018-01-12
B12: Тендерный отдел | C12: 4.4 | D12: Орг 1 | E12: Объект 1 | F12: 540000 | G12: 2018-01-12
B13: Тендерный отдел | C13: 4.4 | D13: Орг 1 | E13: Объект 2 | F13: 24000 | G13: 2018-01-12
B14: Тендерный отдел | C14: 4.4 | D14: Орг 2 | E14: Объект 1 | F14: 40000 | G14: 2018-01-12
B15: Тендерный отдел | C15: 4.4 | D15: Орг 2 | E15: Объект 2 | F15: 324000 | G15: 2018-11-12
B16: СМР | C16: 7.1 | D16: Орг 1 | E16: Объект 1 | F16: 1167880.5 | G16: 2018-01-25
B17: СМР | C17: 7.1 | D17: Орг 1 | E17: Объект 2 | F17: 28914 | G17: 2018-01-29
B18: СМР | C18: 7.1 | D18: Орг 2 | E18: Объект 1 | F18: 167880.5 | G18: 2018-08-25
B19: СМР | C19: 7.1 | D19: Орг 2 | E19: Объект 2 | F19: 128914 | G19: 2018-01-29
B20: Отдел 1 | C20: 9.1 | D20: Орг 1 | E20: Объект 1 | F20: 31400 | G20: 2018-12-26
B21: Отдел 1 | C21: 9.1 | D21: Орг 1 | E21: Объект 2 | F21: 21400 | G21: 2018-12-26
B22: Отдел 1 | C22: 9.1 | D22: Орг 2 | E22: Объект 1 | F22: 51400 | G22: 2018-12-26
B23: Отдел 1 | C23: 9.1 | D23: Орг 2 | E23: Объект 2 | F23: 61400 | G23: 2018-12-26
B24: jnltk sd | C24: 10 | D24: erg2 | E24: ergerg2 | F24: 654 | G24: 2018-12-26
B25: wthqeth | C25: 20 | D25: tyjety2 | E25: reyqerty2 | F25: 5647984563 | G25: 2018-01-09

Sheet Адрес Формат _ред14.01.2018
E1: Дата начала периода | F1: 2018-01-01 | G1: 2018-02-01 | H1: 2018-03-01 | I1: 2018-04-01 | J1: 2018-05-01 | K1: 2018-06-01 | L1: 2018-07-01 | M1: 2018-08-01 | N1: 2018-09-01 | O1: 2018-10-01 | P1: 2018-11-01 | Q1: 2018-12-01 | R1: 2018-01-01
E2: Дата окончания периода | F2: 2018-01-31 | G2: 2018-02-28 | H2: 2018-03-31 | I2: 2018-04-30 | J2: 2018-05-31 | K2: 2018-06-30 | L2: 2018-07-31 | M2: 2018-08-31 | N2: 2018-09-30 | O2: 2018-10-31 | P2: 2018-11-30 | Q2: 2018-12-31 | R2: 2018-12-31
C3: Организация | D3: Объект (в платежном календаре) | E3: ЦФО | F3: 2018-01-01 | G3: 2018-02-01 | H3: 2018-03-01 | I3: 2018-04-01 | J3: 2018-05-01 | K3: 2018-06-01 | L3: 2018-07-01 | M3: 2018-08-01 | N3: 2018-09-01 | O3: 2018-10-01 | P3: 2018-11-01 | Q3: 2018-12-01 | R3: 2018 год
E5: 1.Группа платежей | F5: =SUM(F6:F25) -> 14658946.38 | G5: 2583 | H5: 0 | I5: 254444 | J5: 0 | K5: 0 | L5: 0 | M5: 173561 | N5: 0 | O5: 0 | P5: 324000 | Q5: 165600 | R5: 15579134.38
C6: Орг 1 | D6: Объект 1 | E6: Налоги | F6: =SUMIFS('2018'!$F:$F,'2018'!$B:$B,'Адрес Формат _ред14.01.2018'!$E6,'2018'!$E:$E,'Адрес Формат _ред14.01.2018'!$D6,'2018'!$G:$G,">="&F$1,'2018'!$G:$G,"<="&F$2,'2018'!$D:$D,'Адрес Формат _ред14.01.2018'!$C6) -> 5680.5 | G6: =SUMIFS('2018'!$F:$F,'2018'!$B:$B,'Адрес Формат _ред14.01.2018'!$E6,'2018'!$E:$E,'Адрес Формат _ред14.01.2018'!$D6,'2018'!$G:$G,">="&G$1,'2018'!$G:$G,"<="&G$2,'2018'!$D:$D,'Адрес Формат _ред14.01.2018'!$C6) -> 0 | H6: =SUMIFS('2018'!$F:$F,'2018'!$B:$B,'Адрес Формат _ред14.01.2018'!$E6,'2018'!$E:$E,'Адрес Формат _ред14.01.2018'!$D6,'2018'!$G:$G,">="&H$1,'2018'!$G:$G,"<="&H$2,'2018'!$D:$D,'Адрес Формат _ред14.01.2018'!$C6) -> 0 | I6: =SUMIFS(Таблица1[Сумма],Таблица1[ЦФО],'Адрес Формат _ред14.01.2018'!$E6,Таблица1[Объект],'Адрес Формат _ред14.01.2018'!$D6,Таблица1[Период],">="&I$1,Таблица1[Период],"<="&I$2,Таблица1[Организация],'Адрес Формат _ред14.01.2018'!$C6) -> 0 | J6: =SUMIFS(Таблица1[Сумма],Таблица1[ЦФО],'Адрес Формат _ред14.01.2018'!$E6,Таблица1[Объект],'Адрес Формат _ред14.01.2018'!$D6,Таблица1[Период],">="&J$1,Таблица1[Период],"<="&J$2,Таблица1[Организация],'Адрес Формат _ред14.01.2018'!$C6) -> 0 | K6: =SUMIFS(Таблица1[Сумма],Таблица1[ЦФО],'Адрес Формат _ред14.01.2018'!$E6,Таблица1[Объект],'Адрес Формат _ред14.01.2018'!$D6,Таблица1[Период],">="&K$1,Таблица1[Период],"<="&K$2,Таблица1[Организация],'Адрес Формат _ред14.01.2018'!$C6) -> 0 | L6: =SUMIFS(Таблица1[Сумма],Таблица1[ЦФО],'Адрес Формат _ред14.01.2018'!$E6,Таблица1[Объект],'Адрес Формат _ред14.01.2018'!$D6,Таблица1[Период],">="&L$1,Таблица1[Период],"<="&L$2,Таблица1[Организация],'Адрес Формат _ред14.01.2018'!$C6) -> 0 | M6: =SUMIFS(Таблица1[Сумма],Таблица1[ЦФО],'Адрес Формат _ред14.01.2018'!$E6,Таблица1[Объект],'Адрес Формат _ред14.01.2018'!$D6,Таблица1[Период],">="&M$1,Таблица1[Период],"<="&M$2,Таблица1[Организация],'Адрес Формат _ред14.01.2018'!$C6) -> 0 | N6: =SUMIFS(Таблица1[Сумма],Таблица1[ЦФО],'Адрес Формат _ред14.01.2018'!$E6,Таблица1[Объект],'Адрес Формат _ред14.01.2018'!$D6,Таблица1[Период],">="&N$1,Таблица1[Период],"<="&N$2,Таблица1[Организация],'Адрес Формат _ред14.01.2018'!$C6) -> 0 | O6: =SUMIFS(Таблица1[Сумма],Таблица1[ЦФО],'Адрес Формат _ред14.01.2018'!$E6,Таблица1[Объект],'Адрес Формат _ред14.01.2018'!$D6,Таблица1[Период],">="&O$1,Таблица1[Период],"<="&O$2,Таблица1[Организация],'Адрес Формат _ред14.01.2018'!$C6) -> 0 | P6: =SUMIFS(Таблица1[Сумма],Таблица1[ЦФО],'Адрес Формат _ред14.01.2018'!$E6,Таблица1[Объект],'Адрес Формат _ред14.01.2018'!$D6,Таблица1[Период],">="&P$1,Таблица1[Период],"<="&P$2,Таблица1[Организация],'Адрес Формат _ред14.01.2018'!$C6) -> 0 | Q6: =SUMIFS(Таблица1[Сумма],Таблица1[ЦФО],'Адрес Формат _ред14.01.2018'!$E6,Таблица1[Объект],'Адрес Формат _ред14.01.2018'!$D6,Таблица1[Период],">="&Q$1,Таблица1[Период],"<="&Q$2,Таблица1[Организация],'Адрес Формат _ред14.01.2018'!$C6) -> 0 | R6: =SUM(F6:Q6) -> 5680.5
C7: Орг 1 | D7: Объект 1 | E7: Заработная плата ИТР | F7: =SUMIFS('2018'!$F:$F,'2018'!$B:$B,'Адрес Формат _ред14.01.2018'!$E7,'2018'!$E:$E,'Адрес Формат _ред14.01.2018'!$D7,'2018'!$G:$G,">="&F$1,'2018'!$G:$G,"<="&F$2,'2018'!$D:$D,'Адрес Формат _ред14.01.2018'!$C7) -> 1994508.54 | G7: =SUMIFS('2018'!$F:$F,'2018'!$B:$B,'Адрес Формат _ред14.01.2018'!$E7,'2018'!$E:$E,'Адрес Формат _ред14.01.2018'!$D7,'2018'!$G:$G,">="&G$1,'2018'!$G:$G,"<="&G$2,'2018'!$D:$D,'Адрес Формат _ред14.01.2018'!$C7) -> 0 | H7: =SUMIFS('2018'!$F:$F,'2018'!$B:$B,'Адрес Формат _ред14.01.2018'!$E7,'2018'!$E:$E,'Адрес Формат _ред14.01.2018'!$D7,'2018'!$G:$G,">="&H$1,'2018'!$G:$G,"<="&H$2,'2018'!$D:$D,'Адрес Формат _ред14.01.2018'!$C7) -> 0 | I7: =SUMIFS(Таблица1[Сумма],Таблица1[ЦФО],'Адрес Формат _ред14.01.2018'!$E7,Таблица1[Объект],'Адрес Формат _ред14.01.2018'!$D7,Таблица1[Период],">="&I$1,Таблица1[Период],"<="&I$2,Таблица1[Организация],'Адрес Формат _ред14.01.2018'!$C7) -> 0 | J7: =SUMIFS(Таблица1[Сумма],Таблица1[ЦФО],'Адрес Формат _ред14.01.2018'!$E7,Таблица1[Объект],'Адрес Формат _ред14.01.2018'!$D7,Таблица1[Период],">="&J$1,Таблица1[Период],"<="&J$2,Таблица1[Организация],'Адрес Формат _ред14.01.2018'!$C7) -> 0 | K7: =SUMIFS(Таблица1[Сумма],Таблица1[ЦФО],'Адрес Формат _ред14.01.2018'!$E7,Таблица1[Объект],'Адрес Формат _ред14.01.2018'!$D7,Таблица1[Период],">="&K$1,Таблица1[Период],"<="&K$2,Таблица1[Организация],'Адрес Формат _ред14.01.2018'!$C7) -> 0 | L7: =SUMIFS(Таблица1[Сумма],Таблица1[ЦФО],'Адрес Формат _ред14.01.2018'!$E7,Таблица1[Объект],'Адрес Формат _ред14.01.2018'!$D7,Таблица1[Период],">="&L$1,Таблица1[Период],"<="&L$2,Таблица1[Организация],'Адрес Формат _ред14.01.2018'!$C7) -> 0 | M7: =SUMIFS(Таблица1[Сумма],Таблица1[ЦФО],'Адрес Формат _ред14.01.2018'!$E7,Таблица1[Объект],'Адрес Формат _ред14.01.2018'!$D7,Таблица1[Период],">="&M$1,Таблица1[Период],"<="&M$2,Таблица1[Организация],'Адрес Формат _ред14.01.2018'!$C7) -> 0 | N7: =SUMIFS(Таблица1[Сумма],Таблица1[ЦФО],'Адрес Формат _ред14.01.2018'!$E7,Таблица1[Объект],'Адрес Формат _ред14.01.2018'!$D7,Таблица1[Период],">="&N$1,Таблица1[Период],"<="&N$2,Таблица1[Организация],'Адрес Формат _ред14.01.2018'!$C7) -> 0 | O7: =SUMIFS(Таблица1[Сумма],Таблица1[ЦФО],'Адрес Формат _ред14.01.2018'!$E7,Таблица1[Объект],'Адрес Формат _ред14.01.2018'!$D7,Таблица1[Период],">="&O$1,Таблица1[Период],"<="&O$2,Таблица1[Организация],'Адрес Формат _ред14.01.2018'!$C7) -> 0 | P7: =SUMIFS(Таблица1[Сумма],Таблица1[ЦФО],'Адрес Формат _ред14.01.2018'!$E7,Таблица1[Объект],'Адрес Формат _ред14.01.2018'!$D7,Таблица1[Период],">="&P$1,Таблица1[Период],"<="&P$2,Таблица1[Организация],'Адрес Формат _ред14.01.2018'!$C7) -> 0 | Q7: =SUMIFS(Таблица1[Сумма],Таблица1[ЦФО],'Адрес Формат _ред14.01.2018'!$E7,Таблица1[Объект],'Адрес Формат _ред14.01.2018'!$D7,Таблица1[Период],">="&Q$1,Таблица1[Период],"<="&Q$2,Таблица1[Организация],'Адрес Формат _ред14.01.2018'!$C7) -> 0 | R7: 1994508.54
C8: Орг 1 | D8: Объект 1 | E8: Тендерный отдел | F8: =SUMIFS('2018'!$F:$F,'2018'!$B:$B,'Адрес Формат _ред14.01.2018'!$E8,'2018'!$E:$E,'Адрес Формат _ред14.01.2018'!$D8,'2018'!$G:$G,">="&F$1,'2018'!$G:$G,"<="&F$2,'2018'!$D:$D,'Адрес Формат _ред14.01.2018'!$C8) -> 540000 | G8: =SUMIFS('2018'!$F:$F,'2018'!$B:$B,'Адрес Формат _ред14.01.2018'!$E8,'2018'!$E:$E,'Адрес Формат _ред14.01.2018'!$D8,'2018'!$G:$G,">="&G$1,'2018'!$G:$G,"<="&G$2,'2018'!$D:$D,'Адрес Формат _ред14.01.2018'!$C8) -> 0 | H8: =SUMIFS('2018'!$F:$F,'2018'!$B:$B,'Адрес Формат _ред14.01.2018'!$E8,'2018'!$E:$E,'Адрес Формат _ред14.01.2018'!$D8,'2018'!$G:$G,">="&H$1,'2018'!$G:$G,"<="&H$2,'2018'!$D:$D,'Адрес Формат _ред14.01.2018'!$C8) -> 0 | I8: =SUMIFS(Таблица1[Сумма],Таблица1[ЦФО],'Адрес Формат _ред14.01.2018'!$E8,Таблица1[Объект],'Адрес Формат _ред14.01.2018'!$D8,Таблица1[Период],">="&I$1,Таблица1[Период],"<="&I$2,Таблица1[Организация],'Адрес Формат _ред14.01.2018'!$C8) -> 0 | J8: =SUMIFS(Таблица1[Сумма],Таблица1[ЦФО],'Адрес Формат _ред14.01.2018'!$E8,Таблица1[Объект],'Адрес Формат _ред14.01.2018'!$D8,Таблица1[Период],">="&J$1,Таблица1[Период],"<="&J$2,Таблица1[Организация],'Адрес Формат _ред14.01.2018'!$C8) -> 0 | K8: =SUMIFS(Таблица1[Сумма],Таблица1[ЦФО],'Адрес Формат _ред14.01.2018'!$E8,Таблица1[Объект],'Адрес Формат _ред14.01.2018'!$D8,Таблица1[Период],">="&K$1,Таблица1[Период],"<="&K$2,Таблица1[Организация],'Адрес Формат _ред14.01.2018'!$C8) -> 0 | L8: =SUMIFS(Таблица1[Сумма],Таблица1[ЦФО],'Адрес Формат _ред14.01.2018'!$E8,Таблица1[Объект],'Адрес Формат _ред14.01.2018'!$D8,Таблица1[Период],">="&L$1,Таблица1[Период],"<="&L$2,Таблица1[Организация],'Адрес Формат _ред14.01.2018'!$C8) -> 0 | M8: =SUMIFS(Таблица1[Сумма],Таблица1[ЦФО],'Адрес Формат _ред14.01.2018'!$E8,Таблица1[Объект],'Адрес Формат _ред14.01.2018'!$D8,Таблица1[Период],">="&M$1,Таблица1[Период],"<="&M$2,Таблица1[Организация],'Адрес Формат _ред14.01.2018'!$C8) -> 0 | N8: =SUMIFS(Таблица1[Сумма],Таблица1[ЦФО],'Адрес Формат _ред14.01.2018'!$E8,Таблица1[Объект],'Адрес Формат _ред14.01.2018'!$D8,Таблица1[Период],">="&N$1,Таблица1[Период],"<="&N$2,Таблица1[Организация],'Адрес Формат _ред14.01.2018'!$C8) -> 0 | O8: =SUMIFS(Таблица1[Сумма],Таблица1[ЦФО],'Адрес Формат _ред14.01.2018'!$E8,Таблица1[Объект],'Адрес Формат _ред14.01.2018'!$D8,Таблица1[Период],">="&O$1,Таблица1[Период],"<="&O$2,Таблица1[Организация],'Адрес Формат _ред14.01.2018'!$C8) -> 0 | P8: =SUMIFS(Таблица1[Сумма],Таблица1[ЦФО],'Адрес Формат _ред14.01.2018'!$E8,Таблица1[Объект],'Адрес Формат _ред14.01.2018'!$D8,Таблица1[Период],">="&P$1,Таблица1[Период],"<="&P$2,Таблица1[Организация],'Адрес Формат _ред14.01.2018'!$C8) -> 0 | Q8: =SUMIFS(Таблица1[Сумма],Таблица1[ЦФО],'Адрес Формат _ред14.01.2018'!$E8,Таблица1[Объект],'Адрес Формат _ред14.01.2018'!$D8,Таблица1[Период],">="&Q$1,Таблица1[Период],"<="&Q$2,Таблица1[Организация],'Адрес Формат _ред14.01.2018'!$C8) -> 0 | R8: 540000
C9: Орг 1 | D9: Объект 1 | E9: СМР | F9: =SUMIFS('2018'!$F:$F,'2018'!$B:$B,'Адрес Формат _ред14.01.2018'!$E9,'2018'!$E:$E,'Адрес Формат _ред14.01.2018'!$D9,'2018'!$G:$G,">="&F$1,'2018'!$G:$G,"<="&F$2,'2018'!$D:$D,'Адрес Формат _ред14.01.2018'!$C9) -> 1167880.5 | G9: =SUMIFS('2018'!$F:$F,'2018'!$B:$B,'Адрес Формат _ред14.01.2018'!$E9,'2018'!$E:$E,'Адрес Формат _ред14.01.2018'!$D9,'2018'!$G:$G,">="&G$1,'2018'!$G:$G,"<="&G$2,'2018'!$D:$D,'Адрес Формат _ред14.01.2018'!$C9) -> 0 | H9: =SUMIFS('2018'!$F:$F,'2018'!$B:$B,'Адрес Формат _ред14.01.2018'!$E9,'2018'!$E:$E,'Адрес Формат _ред14.01.2018'!$D9,'2018'!$G:$G,">="&H$1,'2018'!$G:$G,"<="&H$2,'2018'!$D:$D,'Адрес Формат _ред14.01.2018'!$C9) -> 0 | I9: =SUMIFS(Таблица1[Сумма],Таблица1[ЦФО],'Адрес Формат _ред14.01.2018'!$E9,Таблица1[Объект],'Адрес Формат _ред14.01.2018'!$D9,Таблица1[Период],">="&I$1,Таблица1[Период],"<="&I$2,Таблица1[Организация],'Адрес Формат _ред14.01.2018'!$C9) -> 0 | J9: =SUMIFS(Таблица1[Сумма],Таблица1[ЦФО],'Адрес Формат _ред14.01.2018'!$E9,Таблица1[Объект],'Адрес Формат _ред14.01.2018'!$D9,Таблица1[Период],">="&J$1,Таблица1[Период],"<="&J$2,Таблица1[Организация],'Адрес Формат _ред14.01.2018'!$C9) -> 0 | K9: =SUMIFS(Таблица1[Сумма],Таблица1[ЦФО],'Адрес Формат _ред14.01.2018'!$E9,Таблица1[Объект],'Адрес Формат _ред14.01.2018'!$D9,Таблица1[Период],">="&K$1,Таблица1[Период],"<="&K$2,Таблица1[Организация],'Адрес Формат _ред14.01.2018'!$C9) -> 0 | L9: =SUMIFS(Таблица1[Сумма],Таблица1[ЦФО],'Адрес Формат _ред14.01.2018'!$E9,Таблица1[Объект],'Адрес Формат _ред14.01.2018'!$D9,Таблица1[Период],">="&L$1,Таблица1[Период],"<="&L$2,Таблица1[Организация],'Адрес Формат _ред14.01.2018'!$C9) -> 0 | M9: =SUMIFS(Таблица1[Сумма],Таблица1[ЦФО],'Адрес Формат _ред14.01.2018'!$E9,Таблица1[Объект],'Адрес Формат _ред14.01.2018'!$D9,Таблица1[Период],">="&M$1,Таблица1[Период],"<="&M$2,Таблица1[Организация],'Адрес Формат _ред14.01.2018'!$C9) -> 0 | N9: =SUMIFS(Таблица1[Сумма],Таблица1[ЦФО],'Адрес Формат _ред14.01.2018'!$E9,Таблица1[Объект],'Адрес Формат _ред14.01.2018'!$D9,Таблица1[Период],">="&N$1,Таблица1[Период],"<="&N$2,Таблица1[Организация],'Адрес Формат _ред14.01.2018'!$C9) -> 0 | O9: =SUMIFS(Таблица1[Сумма],Таблица1[ЦФО],'Адрес Формат _ред14.01.2018'!$E9,Таблица1[Объект],'Адрес Формат _ред14.01.2018'!$D9,Таблица1[Период],">="&O$1,Таблица1[Период],"<="&O$2,Таблица1[Организация],'Адрес Формат _ред14.01.2018'!$C9) -> 0 | P9: =SUMIFS(Таблица1[Сумма],Таблица1[ЦФО],'Адрес Формат _ред14.01.2018'!$E9,Таблица1[Объект],'Адрес Формат _ред14.01.2018'!$D9,Таблица1[Период],">="&P$1,Таблица1[Период],"<="&P$2,Таблица1[Организация],'Адрес Формат _ред14.01.2018'!$C9) -> 0 | Q9: =SUMIFS(Таблица1[Сумма],Таблица1[ЦФО],'Адрес Формат _ред14.01.2018'!$E9,Таблица1[Объект],'Адрес Формат _ред14.01.2018'!$D9,Таблица1[Период],">="&Q$1,Таблица1[Период],"<="&Q$2,Таблица1[Организация],'Адрес Формат _ред14.01.2018'!$C9) -> 0 | R9: 1167880.5
C10: Орг 1 | D10: Объект 1 | E10: отдел 1 | F10: =SUMIFS('2018'!$F:$F,'2018'!$B:$B,'Адрес Формат _ред14.01.2018'!$E10,'2018'!$E:$E,'Адрес Формат _ред14.01.2018'!$D10,'2018'!$G:$G,">="&F$1,'2018'!$G:$G,"<="&F$2,'2018'!$D:$D,'Адрес Формат _ред14.01.2018'!$C10) -> 0 | G10: =SUMIFS('2018'!$F:$F,'2018'!$B:$B,'Адрес Формат _ред14.01.2018'!$E10,'2018'!$E:$E,'Адрес Формат _ред14.01.2018'!$D10,'2018'!$G:$G,">="&G$1,'2018'!$G:$G,"<="&G$2,'2018'!$D:$D,'Адрес Формат _ред14.01.2018'!$C10) -> 0 | H10: =SUMIFS('2018'!$F:$F,'2018'!$B:$B,'Адрес Формат _ред14.01.2018'!$E10,'2018'!$E:$E,'Адрес Формат _ред14.01.2018'!$D10,'2018'!$G:$G,">="&H$1,'2018'!$G:$G,"<="&H$2,'2018'!$D:$D,'Адрес Формат _ред14.01.2018'!$C10) -> 0 | I10: =SUMIFS(Таблица1[Сумма],Таблица1[ЦФО],'Адрес Формат _ред14.01.2018'!$E10,Таблица1[Объект],'Адрес Формат _ред14.01.2018'!$D10,Таблица1[Период],">="&I$1,Таблица1[Период],"<="&I$2,Таблица1[Организация],'Адрес Формат _ред14.01.2018'!$C10) -> 0 | J10: =SUMIFS(Таблица1[Сумма],Таблица1[ЦФО],'Адрес Формат _ред14.01.2018'!$E10,Таблица1[Объект],'Адрес Формат _ред14.01.2018'!$D10,Таблица1[Период],">="&J$1,Таблица1[Период],"<="&J$2,Таблица1[Организация],'Адрес Формат _ред14.01.2018'!$C10) -> 0 | K10: =SUMIFS(Таблица1[Сумма],Таблица1[ЦФО],'Адрес Формат _ред14.01.2018'!$E10,Таблица1[Объект],'Адрес Формат _ред14.01.2018'!$D10,Таблица1[Период],">="&K$1,Таблица1[Период],"<="&K$2,Таблица1[Организация],'Адрес Формат _ред14.01.2018'!$C10) -> 0 | L10: =SUMIFS(Таблица1[Сумма],Таблица1[ЦФО],'Адрес Формат _ред14.01.2018'!$E10,Таблица1[Объект],'Адрес Формат _ред14.01.2018'!$D10,Таблица1[Период],">="&L$1,Таблица1[Период],"<="&L$2,Таблица1[Организация],'Адрес Формат _ред14.01.2018'!$C10) -> 0 | M10: =SUMIFS(Таблица1[Сумма],Таблица1[ЦФО],'Адрес Формат _ред14.01.2018'!$E10,Таблица1[Объект],'Адрес Формат _ред14.01.2018'!$D10,Таблица1[Период],">="&M$1,Таблица1[Период],"<="&M$2,Таблица1[Организация],'Адрес Формат _ред14.01.2018'!$C10) -> 0 | N10: =SUMIFS(Таблица1[Сумма],Таблица1[ЦФО],'Адрес Формат _ред14.01.2018'!$E10,Таблица1[Объект],'Адрес Формат _ред14.01.2018'!$D10,Таблица1[Период],">="&N$1,Таблица1[Период],"<="&N$2,Таблица1[Организация],'Адрес Формат _ред14.01.2018'!$C10) -> 0 | O10: =SUMIFS(Таблица1[Сумма],Таблица1[ЦФО],'Адрес Формат _ред14.01.2018'!$E10,Таблица1[Объект],'Адрес Формат _ред14.01.2018'!$D10,Таблица1[Период],">="&O$1,Таблица1[Период],"<="&O$2,Таблица1[Организация],'Адрес Формат _ред14.01.2018'!$C10) -> 0 | P10: =SUMIFS(Таблица1[Сумма],Таблица1[ЦФО],'Адрес Формат _ред14.01.2018'!$E10,Таблица1[Объект],'Адрес Формат _ред14.01.2018'!$D10,Таблица1[Период],">="&P$1,Таблица1[Период],"<="&P$2,Таблица1[Организация],'Адрес Формат _ред14.01.2018'!$C10) -> 0 | Q10: =SUMIFS(Таблица1[Сумма],Таблица1[ЦФО],'Адрес Формат _ред14.01.2018'!$E10,Таблица1[Объект],'Адрес Формат _ред14.01.2018'!$D10,Таблица1[Период],">="&Q$1,Таблица1[Период],"<="&Q$2,Таблица1[Организация],'Адрес Формат _ред14.01.2018'!$C10) -> 31400 | R10: =SUM(F10:Q10) -> 31400
C11: Орг 1 | D11: Объект 2 | E11: Налоги | F11: =SUMIFS('2018'!$F:$F,'2018'!$B:$B,'Адрес Формат _ред14.01.2018'!$E11,'2018'!$E:$E,'Адрес Формат _ред14.01.2018'!$D11,'2018'!$G:$G,">="&F$1,'2018'!$G:$G,"<="&F$2,'2018'!$D:$D,'Адрес Формат _ред14.01.2018'!$C11) -> 9864024.42 | G11: =SUMIFS('2018'!$F:$F,'2018'!$B:$B,'Адрес Формат _ред14.01.2018'!$E11,'2018'!$E:$E,'Адрес Формат _ред14.01.2018'!$D11,'2018'!$G:$G,">="&G$1,'2018'!$G:$G,"<="&G$2,'2018'!$D:$D,'Адрес Формат _ред14.01.2018'!$C11) -> 0 | H11: =SUMIFS('2018'!$F:$F,'2018'!$B:$B,'Адрес Формат _ред14.01.2018'!$E11,'2018'!$E:$E,'Адрес Формат _ред14.01.2018'!$D11,'2018'!$G:$G,">="&H$1,'2018'!$G:$G,"<="&H$2,'2018'!$D:$D,'Адрес Формат _ред14.01.2018'!$C11) -> 0 | I11: =SUMIFS(Таблица1[Сумма],Таблица1[ЦФО],'Адрес Формат _ред14.01.2018'!$E11,Таблица1[Объект],'Адрес Формат _ред14.01.2018'!$D11,Таблица1[Период],">="&I$1,Таблица1[Период],"<="&I$2,Таблица1[Организация],'Адрес Формат _ред14.01.2018'!$C11) -> 0 | J11: =SUMIFS(Таблица1[Сумма],Таблица1[ЦФО],'Адрес Формат _ред14.01.2018'!$E11,Таблица1[Объект],'Адрес Формат _ред14.01.2018'!$D11,Таблица1[Период],">="&J$1,Таблица1[Период],"<="&J$2,Таблица1[Организация],'Адрес Формат _ред14.01.2018'!$C11) -> 0 | K11: =SUMIFS(Таблица1[Сумма],Таблица1[ЦФО],'Адрес Формат _ред14.01.2018'!$E11,Таблица1[Объект],'Адрес Формат _ред14.01.2018'!$D11,Таблица1[Период],">="&K$1,Таблица1[Период],"<="&K$2,Таблица1[Организация],'Адрес Формат _ред14.01.2018'!$C11) -> 0 | L11: =SUMIFS(Таблица1[Сумма],Таблица1[ЦФО],'Адрес Формат _ред14.01.2018'!$E11,Таблица1[Объект],'Адрес Формат _ред14.01.2018'!$D11,Таблица1[Период],">="&L$1,Таблица1[Период],"<="&L$2,Таблица1[Организация],'Адрес Формат _ред14.01.2018'!$C11) -> 0 | M11: =SUMIFS(Таблица1[Сумма],Таблица1[ЦФО],'Адрес Формат _ред14.01.2018'!$E11,Таблица1[Объект],'Адрес Формат _ред14.01.2018'!$D11,Таблица1[Период],">="&M$1,Таблица1[Период],"<="&M$2,Таблица1[Организация],'Адрес Формат _ред14.01.2018'!$C11) -> 0 | N11: =SUMIFS(Таблица1[Сумма],Таблица1[ЦФО],'Адрес Формат _ред14.01.2018'!$E11,Таблица1[Объект],'Адрес Формат _ред14.01.2018'!$D11,Таблица1[Период],">="&N$1,Таблица1[Период],"<="&N$2,Таблица1[Организация],'Адрес Формат _ред14.01.2018'!$C11) -> 0 | O11: =SUMIFS(Таблица1[Сумма],Таблица1[ЦФО],'Адрес Формат _ред14.01.2018'!$E11,Таблица1[Объект],'Адрес Формат _ред14.01.2018'!$D11,Таблица1[Период],">="&O$1,Таблица1[Период],"<="&O$2,Таблица1[Организация],'Адрес Формат _ред14.01.2018'!$C11) -> 0 | P11: =SUMIFS(Таблица1[Сумма],Таблица1[ЦФО],'Адрес Формат _ред14.01.2018'!$E11,Таблица1[Объект],'Адрес Формат _ред14.01.2018'!$D11,Таблица1[Период],">="&P$1,Таблица1[Период],"<="&P$2,Таблица1[Организация],'Адрес Формат _ред14.01.2018'!$C11) -> 0 | Q11: =SUMIFS(Таблица1[Сумма],Таблица1[ЦФО],'Адрес Формат _ред14.01.2018'!$E11,Таблица1[Объект],'Адрес Формат _ред14.01.2018'!$D11,Таблица1[Период],">="&Q$1,Таблица1[Период],"<="&Q$2,Таблица1[Организация],'Адрес Формат _ред14.01.2018'!$C11) -> 0 | R11: 9864024.42
C12: Орг 1 | D12: Объект 2 | E12: Заработная плата ИТР | F12: =SUMIFS('2018'!$F:$F,'2018'!$B:$B,'Адрес Формат _ред14.01.2018'!$E12,'2018'!$E:$E,'Адрес Формат _ред14.01.2018'!$D12,'2018'!$G:$G,">="&F$1,'2018'!$G:$G,"<="&F$2,'2018'!$D:$D,'Адрес Формат _ред14.01.2018'!$C12) -> 0 | G12: =SUMIFS('2018'!$F:$F,'2018'!$B:$B,'Адрес Формат _ред14.01.2018'!$E12,'2018'!$E:$E,'Адрес Формат _ред14.01.2018'!$D12,'2018'!$G:$G,">="&G$1,'2018'!$G:$G,"<="&G$2,'2018'!$D:$D,'Адрес Формат _ред14.01.2018'!$C12) -> 2583 | H12: =SUMIFS('2018'!$F:$F,'2018'!$B:$B,'Адрес Формат _ред14.01.2018'!$E12,'2018'!$E:$E,'Адрес Формат _ред14.01.2018'!$D12,'2018'!$G:$G,">="&H$1,'2018'!$G:$G,"<="&H$2,'2018'!$D:$D,'Адрес Формат _ред14.01.2018'!$C12) -> 0 | I12: =SUMIFS(Таблица1[Сумма],Таблица1[ЦФО],'Адрес Формат _ред14.01.2018'!$E12,Таблица1[Объект],'Адрес Формат _ред14.01.2018'!$D12,Таблица1[Период],">="&I$1,Таблица1[Период],"<="&I$2,Таблица1[Организация],'Адрес Формат _ред14.01.2018'!$C12) -> 0 | J12: =SUMIFS(Таблица1[Сумма],Таблица1[ЦФО],'Адрес Формат _ред14.01.2018'!$E12,Таблица1[Объект],'Адрес Формат _ред14.01.2018'!$D12,Таблица1[Период],">="&J$1,Таблица1[Период],"<="&J$2,Таблица1[Организация],'Адрес Формат _ред14.01.2018'!$C12) -> 0 | K12: =SUMIFS(Таблица1[Сумма],Таблица1[ЦФО],'Адрес Формат _ред14.01.2018'!$E12,Таблица1[Объект],'Адрес Формат _ред14.01.2018'!$D12,Таблица1[Период],">="&K$1,Таблица1[Период],"<="&K$2,Таблица1[Организация],'Адрес Формат _ред14.01.2018'!$C12) -> 0 | L12: =SUMIFS(Таблица1[Сумма],Таблица1[ЦФО],'Адрес Формат _ред14.01.2018'!$E12,Таблица1[Объект],'Адрес Формат _ред14.01.2018'!$D12,Таблица1[Период],">="&L$1,Таблица1[Период],"<="&L$2,Таблица1[Организация],'Адрес Формат _ред14.01.2018'!$C12) -> 0 | M12: =SUMIFS(Таблица1[Сумма],Таблица1[ЦФО],'Адрес Формат _ред14.01.2018'!$E12,Таблица1[Объект],'Адрес Формат _ред14.01.2018'!$D12,Таблица1[Период],">="&M$1,Таблица1[Период],"<="&M$2,Таблица1[Организация],'Адрес Формат _ред14.01.2018'!$C12) -> 0 | N12: =SUMIFS(Таблица1[Сумма],Таблица1[ЦФО],'Адрес Формат _ред14.01.2018'!$E12,Таблица1[Объект],'Адрес Формат _ред14.01.2018'!$D12,Таблица1[Период],">="&N$1,Таблица1[Период],"<="&N$2,Таблица1[Организация],'Адрес Формат _ред14.01.2018'!$C12) -> 0 | O12: =SUMIFS(Таблица1[Сумма],Таблица1[ЦФО],'Адрес Формат _ред14.01.2018'!$E12,Таблица1[Объект],'Адрес Формат _ред14.01.2018'!$D12,Таблица1[Период],">="&O$1,Таблица1[Период],"<="&O$2,Таблица1[Организация],'Адрес Формат _ред14.01.2018'!$C12) -> 0 | P12: =SUMIFS(Таблица1[Сумма],Таблица1[ЦФО],'Адрес Формат _ред14.01.2018'!$E12,Таблица1[Объект],'Адрес Формат _ред14.01.2018'!$D12,Таблица1[Период],">="&P$1,Таблица1[Период],"<="&P$2,Таблица1[Организация],'Адрес Формат _ред14.01.2018'!$C12) -> 0 | Q12: =SUMIFS(Таблица1[Сумма],Таблица1[ЦФО],'Адрес Формат _ред14.01.2018'!$E12,Таблица1[Объект],'Адрес Формат _ред14.01.2018'!$D12,Таблица1[Период],">="&Q$1,Таблица1[Период],"<="&Q$2,Таблица1[Организация],'Адрес Формат _ред14.01.2018'!$C12) -> 0 | R12: 2583
C13: Орг 1 | D13: Объект 2 | E13: Тендерный отдел | F13: =SUMIFS('2018'!$F:$F,'2018'!$B:$B,'Адрес Формат _ред14.01.2018'!$E13,'2018'!$E:$E,'Адрес Формат _ред14.01.2018'!$D13,'2018'!$G:$G,">="&F$1,'2018'!$G:$G,"<="&F$2,'2018'!$D:$D,'Адрес Формат _ред14.01.2018'!$C13) -> 24000 | G13: =SUMIFS('2018'!$F:$F,'2018'!$B:$B,'Адрес Формат _ред14.01.2018'!$E13,'2018'!$E:$E,'Адрес Формат _ред14.01.2018'!$D13,'2018'!$G:$G,">="&G$1,'2018'!$G:$G,"<="&G$2,'2018'!$D:$D,'Адрес Формат _ред14.01.2018'!$C13) -> 0 | H13: =SUMIFS('2018'!$F:$F,'2018'!$B:$B,'Адрес Формат _ред14.01.2018'!$E13,'2018'!$E:$E,'Адрес Формат _ред14.01.2018'!$D13,'2018'!$G:$G,">="&H$1,'2018'!$G:$G,"<="&H$2,'2018'!$D:$D,'Адрес Формат _ред14.01.2018'!$C13) -> 0 | I13: =SUMIFS(Таблица1[Сумма],Таблица1[ЦФО],'Адрес Формат _ред14.01.2018'!$E13,Таблица1[Объект],'Адрес Формат _ред14.01.2018'!$D13,Таблица1[Период],">="&I$1,Таблица1[Период],"<="&I$2,Таблица1[Организация],'Адрес Формат _ред14.01.2018'!$C13) -> 0 | J13: =SUMIFS(Таблица1[Сумма],Таблица1[ЦФО],'Адрес Формат _ред14.01.2018'!$E13,Таблица1[Объект],'Адрес Формат _ред14.01.2018'!$D13,Таблица1[Период],">="&J$1,Таблица1[Период],"<="&J$2,Таблица1[Организация],'Адрес Формат _ред14.01.2018'!$C13) -> 0 | K13: =SUMIFS(Таблица1[Сумма],Таблица1[ЦФО],'Адрес Формат _ред14.01.2018'!$E13,Таблица1[Объект],'Адрес Формат _ред14.01.2018'!$D13,Таблица1[Период],">="&K$1,Таблица1[Период],"<="&K$2,Таблица1[Организация],'Адрес Формат _ред14.01.2018'!$C13) -> 0 | L13: =SUMIFS(Таблица1[Сумма],Таблица1[ЦФО],'Адрес Формат _ред14.01.2018'!$E13,Таблица1[Объект],'Адрес Формат _ред14.01.2018'!$D13,Таблица1[Период],">="&L$1,Таблица1[Период],"<="&L$2,Таблица1[Организация],'Адрес Формат _ред14.01.2018'!$C13) -> 0 | M13: =SUMIFS(Таблица1[Сумма],Таблица1[ЦФО],'Адрес Формат _ред14.01.2018'!$E13,Таблица1[Объект],'Адрес Формат _ред14.01.2018'!$D13,Таблица1[Период],">="&M$1,Таблица1[Период],"<="&M$2,Таблица1[Организация],'Адрес Формат _ред14.01.2018'!$C13) -> 0 | N13: =SUMIFS(Таблица1[Сумма],Таблица1[ЦФО],'Адрес Формат _ред14.01.2018'!$E13,Таблица1[Объект],'Адрес Формат _ред14.01.2018'!$D13,Таблица1[Период],">="&N$1,Таблица1[Период],"<="&N$2,Таблица1[Организация],'Адрес Формат _ред14.01.2018'!$C13) -> 0 | O13: =SUMIFS(Таблица1[Сумма],Таблица1[ЦФО],'Адрес Формат _ред14.01.2018'!$E13,Таблица1[Объект],'Адрес Формат _ред14.01.2018'!$D13,Таблица1[Период],">="&O$1,Таблица1[Период],"<="&O$2,Таблица1[Организация],'Адрес Формат _ред14.01.2018'!$C13) -> 0 | P13: =SUMIFS(Таблица1[Сумма],Таблица1[ЦФО],'Адрес Формат _ред14.01.2018'!$E13,Таблица1[Объект],'Адрес Формат _ред14.01.2018'!$D13,Таблица1[Период],">="&P$1,Таблица1[Период],"<="&P$2,Таблица1[Организация],'Адрес Формат _ред14.01.2018'!$C13) -> 0 | Q13: =SUMIFS(Таблица1[Сумма],Таблица1[ЦФО],'Адрес Формат _ред14.01.2018'!$E13,Таблица1[Объект],'Адрес Формат _ред14.01.2018'!$D13,Таблица1[Период],">="&Q$1,Таблица1[Период],"<="&Q$2,Таблица1[Организация],'Адрес Формат _ред14.01.2018'!$C13) -> 0 | R13: 24000
C14: Орг 1 | D14: Объект 2 | E14: СМР | F14: =SUMIFS('2018'!$F:$F,'2018'!$B:$B,'Адрес Формат _ред14.01.2018'!$E14,'2018'!$E:$E,'Адрес Формат _ред14.01.2018'!$D14,'2018'!$G:$G,">="&F$1,'2018'!$G:$G,"<="&F$2,'2018'!$D:$D,'Адрес Формат _ред14.01.2018'!$C14) -> 28914 | G14: =SUMIFS('2018'!$F:$F,'2018'!$B:$B,'Адрес Формат _ред14.01.2018'!$E14,'2018'!$E:$E,'Адрес Формат _ред14.01.2018'!$D14,'2018'!$G:$G,">="&G$1,'2018'!$G:$G,"<="&G$2,'2018'!$D:$D,'Адрес Формат _ред14.01.2018'!$C14) -> 0 | H14: =SUMIFS('2018'!$F:$F,'2018'!$B:$B,'Адрес Формат _ред14.01.2018'!$E14,'2018'!$E:$E,'Адрес Формат _ред14.01.2018'!$D14,'2018'!$G:$G,">="&H$1,'2018'!$G:$G,"<="&H$2,'2018'!$D:$D,'Адрес Формат _ред14.01.2018'!$C14) -> 0 | I14: =SUMIFS(Таблица1[Сумма],Таблица1[ЦФО],'Адрес Формат _ред14.01.2018'!$E14,Таблица1[Объект],'Адрес Формат _ред14.01.2018'!$D14,Таблица1[Период],">="&I$1,Таблица1[Период],"<="&I$2,Таблица1[Организация],'Адрес Формат _ред14.01.2018'!$C14) -> 0 | J14: =SUMIFS(Таблица1[Сумма],Таблица1[ЦФО],'Адрес Формат _ред14.01.2018'!$E14,Таблица1[Объект],'Адрес Формат _ред14.01.2018'!$D14,Таблица1[Период],">="&J$1,Таблица1[Период],"<="&J$2,Таблица1[Организация],'Адрес Формат _ред14.01.2018'!$C14) -> 0 | K14: =SUMIFS(Таблица1[Сумма],Таблица1[ЦФО],'Адрес Формат _ред14.01.2018'!$E14,Таблица1[Объект],'Адрес Формат _ред14.01.2018'!$D14,Таблица1[Период],">="&K$1,Таблица1[Период],"<="&K$2,Таблица1[Организация],'Адрес Формат _ред14.01.2018'!$C14) -> 0 | L14: =SUMIFS(Таблица1[Сумма],Таблица1[ЦФО],'Адрес Формат _ред14.01.2018'!$E14,Таблица1[Объект],'Адрес Формат _ред14.01.2018'!$D14,Таблица1[Период],">="&L$1,Таблица1[Период],"<="&L$2,Таблица1[Организация],'Адрес Формат _ред14.01.2018'!$C14) -> 0 | M14: =SUMIFS(Таблица1[Сумма],Таблица1[ЦФО],'Адрес Формат _ред14.01.2018'!$E14,Таблица1[Объект],'Адрес Формат _ред14.01.2018'!$D14,Таблица1[Период],">="&M$1,Таблица1[Период],"<="&M$2,Таблица1[Организация],'Адрес Формат _ред14.01.2018'!$C14) -> 0 | N14: =SUMIFS(Таблица1[Сумма],Таблица1[ЦФО],'Адрес Формат _ред14.01.2018'!$E14,Таблица1[Объект],'Адрес Формат _ред14.01.2018'!$D14,Таблица1[Период],">="&N$1,Таблица1[Период],"<="&N$2,Таблица1[Организация],'Адрес Формат _ред14.01.2018'!$C14) -> 0 | O14: =SUMIFS(Таблица1[Сумма],Таблица1[ЦФО],'Адрес Формат _ред14.01.2018'!$E14,Таблица1[Объект],'Адрес Формат _ред14.01.2018'!$D14,Таблица1[Период],">="&O$1,Таблица1[Период],"<="&O$2,Таблица1[Организация],'Адрес Формат _ред14.01.2018'!$C14) -> 0 | P14: =SUMIFS(Таблица1[Сумма],Таблица1[ЦФО],'Адрес Формат _ред14.01.2018'!$E14,Таблица1[Объект],'Адрес Формат _ред14.01.2018'!$D14,Таблица1[Период],">="&P$1,Таблица1[Период],"<="&P$2,Таблица1[Организация],'Адрес Формат _ред14.01.2018'!$C14) -> 0 | Q14: =SUMIFS(Таблица1[Сумма],Таблица1[ЦФО],'Адрес Формат _ред14.01.2018'!$E14,Таблица1[Объект],'Адрес Формат _ред14.01.2018'!$D14,Таблица1[Период],">="&Q$1,Таблица1[Период],"<="&Q$2,Таблица1[Организация],'Адрес Формат _ред14.01.2018'!$C14) -> 0 | R14: 28914
C15: Орг 1 | D15: Объект 2 | E15: отдел 1 | F15: =SUMIFS('2018'!$F:$F,'2018'!$B:$B,'Адрес Формат _ред14.01.2018'!$E15,'2018'!$E:$E,'Адрес Формат _ред14.01.2018'!$D15,'2018'!$G:$G,">="&F$1,'2018'!$G:$G,"<="&F$2,'2018'!$D:$D,'Адрес Формат _ред14.01.2018'!$C15) -> 0 | G15: =SUMIFS('2018'!$F:$F,'2018'!$B:$B,'Адрес Формат _ред14.01.2018'!$E15,'2018'!$E:$E,'Адрес Формат _ред14.01.2018'!$D15,'2018'!$G:$G,">="&G$1,'2018'!$G:$G,"<="&G$2,'2018'!$D:$D,'Адрес Формат _ред14.01.2018'!$C15) -> 0 | H15: =SUMIFS('2018'!$F:$F,'2018'!$B:$B,'Адрес Формат _ред14.01.2018'!$E15,'2018'!$E:$E,'Адрес Формат _ред14.01.2018'!$D15,'2018'!$G:$G,">="&H$1,'2018'!$G:$G,"<="&H$2,'2018'!$D:$D,'Адрес Формат _ред14.01.2018'!$C15) -> 0 | I15: =SUMIFS(Таблица1[Сумма],Таблица1[ЦФО],'Адрес Формат _ред14.01.2018'!$E15,Таблица1[Объект],'Адрес Формат _ред14.01.2018'!$D15,Таблица1[Период],">="&I$1,Таблица1[Период],"<="&I$2,Таблица1[Организация],'Адрес Формат _ред14.01.2018'!$C15) -> 0 | J15: =SUMIFS(Таблица1[Сумма],Таблица1[ЦФО],'Адрес Формат _ред14.01.2018'!$E15,Таблица1[Объект],'Адрес Формат _ред14.01.2018'!$D15,Таблица1[Период],">="&J$1,Таблица1[Период],"<="&J$2,Таблица1[Организация],'Адрес Формат _ред14.01.2018'!$C15) -> 0 | K15: =SUMIFS(Таблица1[Сумма],Таблица1[ЦФО],'Адрес Формат _ред14.01.2018'!$E15,Таблица1[Объект],'Адрес Формат _ред14.01.2018'!$D15,Таблица1[Период],">="&K$1,Таблица1[Период],"<="&K$2,Таблица1[Организация],'Адрес Формат _ред14.01.2018'!$C15) -> 0 | L15: =SUMIFS(Таблица1[Сумма],Таблица1[ЦФО],'Адрес Формат _ред14.01.2018'!$E15,Таблица1[Объект],'Адрес Формат _ред14.01.2018'!$D15,Таблица1[Период],">="&L$1,Таблица1[Период],"<="&L$2,Таблица1[Организация],'Адрес Формат _ред14.01.2018'!$C15) -> 0 | M15: =SUMIFS(Таблица1[Сумма],Таблица1[ЦФО],'Адрес Формат _ред14.01.2018'!$E15,Таблица1[Объект],'Адрес Формат _ред14.01.2018'!$D15,Таблица1[Период],">="&M$1,Таблица1[Период],"<="&M$2,Таблица1[Организация],'Адрес Формат _ред14.01.2018'!$C15) -> 0 | N15: =SUMIFS(Таблица1[Сумма],Таблица1[ЦФО],'Адрес Формат _ред14.01.2018'!$E15,Таблица1[Объект],'Адрес Формат _ред14.01.2018'!$D15,Таблица1[Период],">="&N$1,Таблица1[Период],"<="&N$2,Таблица1[Организация],'Адрес Формат _ред14.01.2018'!$C15) -> 0 | O15: =SUMIFS(Таблица1[Сумма],Таблица1[ЦФО],'Адрес Формат _ред14.01.2018'!$E15,Таблица1[Объект],'Адрес Формат _ред14.01.2018'!$D15,Таблица1[Период],">="&O$1,Таблица1[Период],"<="&O$2,Таблица1[Организация],'Адрес Формат _ред14.01.2018'!$C15) -> 0 | P15: =SUMIFS(Таблица1[Сумма],Таблица1[ЦФО],'Адрес Формат _ред14.01.2018'!$E15,Таблица1[Объект],'Адрес Формат _ред14.01.2018'!$D15,Таблица1[Период],">="&P$1,Таблица1[Период],"<="&P$2,Таблица1[Организация],'Адрес Формат _ред14.01.2018'!$C15) -> 0 | Q15: =SUMIFS(Таблица1[Сумма],Таблица1[ЦФО],'Адрес Формат _ред14.01.2018'!$E15,Таблица1[Объект],'Адрес Формат _ред14.01.2018'!$D15,Таблица1[Период],">="&Q$1,Таблица1[Период],"<="&Q$2,Таблица1[Организация],'Адрес Формат _ред14.01.2018'!$C15) -> 21400 | R15: =SUM(F15:Q15) -> 21400
C16: Орг 2 | D16: Объект 1 | E16: Налоги | F16: =SUMIFS('2018'!$F:$F,'2018'!$B:$B,'Адрес Формат _ред14.01.2018'!$E16,'2018'!$E:$E,'Адрес Формат _ред14.01.2018'!$D16,'2018'!$G:$G,">="&F$1,'2018'!$G:$G,"<="&F$2,'2018'!$D:$D,'Адрес Формат _ред14.01.2018'!$C16) -> 0 | G16: =SUMIFS('2018'!$F:$F,'2018'!$B:$B,'Адрес Формат _ред14.01.2018'!$E16,'2018'!$E:$E,'Адрес Формат _ред14.01.2018'!$D16,'2018'!$G:$G,">="&G$1,'2018'!$G:$G,"<="&G$2,'2018'!$D:$D,'Адрес Формат _ред14.01.2018'!$C16) -> 0 | H16: =SUMIFS('2018'!$F:$F,'2018'!$B:$B,'Адрес Формат _ред14.01.2018'!$E16,'2018'!$E:$E,'Адрес Формат _ред14.01.2018'!$D16,'2018'!$G:$G,">="&H$1,'2018'!$G:$G,"<="&H$2,'2018'!$D:$D,'Адрес Формат _ред14.01.2018'!$C16) -> 0 | I16: =SUMIFS(Таблица1[Сумма],Таблица1[ЦФО],'Адрес Формат _ред14.01.2018'!$E16,Таблица1[Объект],'Адрес Формат _ред14.01.2018'!$D16,Таблица1[Период],">="&I$1,Таблица1[Период],"<="&I$2,Таблица1[Организация],'Адрес Формат _ред14.01.2018'!$C16) -> 0 | J16: =SUMIFS(Таблица1[Сумма],Таблица1[ЦФО],'Адрес Формат _ред14.01.2018'!$E16,Таблица1[Объект],'Адрес Формат _ред14.01.2018'!$D16,Таблица1[Период],">="&J$1,Таблица1[Период],"<="&J$2,Таблица1[Организация],'Адрес Формат _ред14.01.2018'!$C16) -> 0 | K16: =SUMIFS(Таблица1[Сумма],Таблица1[ЦФО],'Адрес Формат _ред14.01.2018'!$E16,Таблица1[Объект],'Адрес Формат _ред14.01.2018'!$D16,Таблица1[Период],">="&K$1,Таблица1[Период],"<="&K$2,Таблица1[Организация],'Адрес Формат _ред14.01.2018'!$C16) -> 0 | L16: =SUMIFS(Таблица1[Сумма],Таблица1[ЦФО],'Адрес Формат _ред14.01.2018'!$E16,Таблица1[Объект],'Адрес Формат _ред14.01.2018'!$D16,Таблица1[Период],">="&L$1,Таблица1[Период],"<="&L$2,Таблица1[Организация],'Адрес Формат _ред14.01.2018'!$C16) -> 0 | M16: =SUMIFS(Таблица1[Сумма],Таблица1[ЦФО],'Адрес Формат _ред14.01.2018'!$E16,Таблица1[Объект],'Адрес Формат _ред14.01.2018'!$D16,Таблица1[Период],">="&M$1,Таблица1[Период],"<="&M$2,Таблица1[Организация],'Адрес Формат _ред14.01.2018'!$C16) -> 5680.5 | N16: =SUMIFS(Таблица1[Сумма],Таблица1[ЦФО],'Адрес Формат _ред14.01.2018'!$E16,Таблица1[Объект],'Адрес Формат _ред14.01.2018'!$D16,Таблица1[Период],">="&N$1,Таблица1[Период],"<="&N$2,Таблица1[Организация],'Адрес Формат _ред14.01.2018'!$C16) -> 0 | O16: =SUMIFS(Таблица1[Сумма],Таблица1[ЦФО],'Адрес Формат _ред14.01.2018'!$E16,Таблица1[Объект],'Адрес Формат _ред14.01.2018'!$D16,Таблица1[Период],">="&O$1,Таблица1[Период],"<="&O$2,Таблица1[Организация],'Адрес Формат _ред14.01.2018'!$C16) -> 0 | P16: =SUMIFS(Таблица1[Сумма],Таблица1[ЦФО],'Адрес Формат _ред14.01.2018'!$E16,Таблица1[Объект],'Адрес Формат _ред14.01.2018'!$D16,Таблица1[Период],">="&P$1,Таблица1[Период],"<="&P$2,Таблица1[Организация],'Адрес Формат _ред14.01.2018'!$C16) -> 0 | Q16: =SUMIFS(Таблица1[Сумма],Таблица1[ЦФО],'Адрес Формат _ред14.01.2018'!$E16,Таблица1[Объект],'Адрес Формат _ред14.01.2018'!$D16,Таблица1[Период],">="&Q$1,Таблица1[Период],"<="&Q$2,Таблица1[Организация],'Адрес Формат _ред14.01.2018'!$C16) -> 0 | R16: 5680.5
C17: Орг 2 | D17: Объект 1 | E17: Заработная плата ИТР | F17: =SUMIFS('2018'!$F:$F,'2018'!$B:$B,'Адрес Формат _ред14.01.2018'!$E17,'2018'!$E:$E,'Адрес Формат _ред14.01.2018'!$D17,'2018'!$G:$G,">="&F$1,'2018'!$G:$G,"<="&F$2,'2018'!$D:$D,'Адрес Формат _ред14.01.2018'!$C17) -> 1000 | G17: =SUMIFS('2018'!$F:$F,'2018'!$B:$B,'Адрес Формат _ред14.01.2018'!$E17,'2018'!$E:$E,'Адрес Формат _ред14.01.2018'!$D17,'2018'!$G:$G,">="&G$1,'2018'!$G:$G,"<="&G$2,'2018'!$D:$D,'Адрес Формат _ред14.01.2018'!$C17) -> 0 | H17: =SUMIFS('2018'!$F:$F,'2018'!$B:$B,'Адрес Формат _ред14.01.2018'!$E17,'2018'!$E:$E,'Адрес Формат _ред14.01.2018'!$D17,'2018'!$G:$G,">="&H$1,'2018'!$G:$G,"<="&H$2,'2018'!$D:$D,'Адрес Формат _ред14.01.2018'!$C17) -> 0 | I17: =SUMIFS(Таблица1[Сумма],Таблица1[ЦФО],'Адрес Формат _ред14.01.2018'!$E17,Таблица1[Объект],'Адрес Формат _ред14.01.2018'!$D17,Таблица1[Период],">="&I$1,Таблица1[Период],"<="&I$2,Таблица1[Организация],'Адрес Формат _ред14.01.2018'!$C17) -> 0 | J17: =SUMIFS(Таблица1[Сумма],Таблица1[ЦФО],'Адрес Формат _ред14.01.2018'!$E17,Таблица1[Объект],'Адрес Формат _ред14.01.2018'!$D17,Таблица1[Период],">="&J$1,Таблица1[Период],"<="&J$2,Таблица1[Организация],'Адрес Формат _ред14.01.2018'!$C17) -> 0 | K17: =SUMIFS(Таблица1[Сумма],Таблица1[ЦФО],'Адрес Формат _ред14.01.2018'!$E17,Таблица1[Объект],'Адрес Формат _ред14.01.2018'!$D17,Таблица1[Период],">="&K$1,Таблица1[Период],"<="&K$2,Таблица1[Организация],'Адрес Формат _ред14.01.2018'!$C17) -> 0 | L17: =SUMIFS(Таблица1[Сумма],Таблица1[ЦФО],'Адрес Формат _ред14.01.2018'!$E17,Таблица1[Объект],'Адрес Формат _ред14.01.2018'!$D17,Таблица1[Период],">="&L$1,Таблица1[Период],"<="&L$2,Таблица1[Организация],'Адрес Формат _ред14.01.2018'!$C17) -> 0 | M17: =SUMIFS(Таблица1[Сумма],Таблица1[ЦФО],'Адрес Формат _ред14.01.2018'!$E17,Таблица1[Объект],'Адрес Формат _ред14.01.2018'!$D17,Таблица1[Период],">="&M$1,Таблица1[Период],"<="&M$2,Таблица1[Организация],'Адрес Формат _ред14.01.2018'!$C17) -> 0 | N17: =SUMIFS(Таблица1[Сумма],Таблица1[ЦФО],'Адрес Формат _ред14.01.2018'!$E17,Таблица1[Объект],'Адрес Формат _ред14.01.2018'!$D17,Таблица1[Период],">="&N$1,Таблица1[Период],"<="&N$2,Таблица1[Организация],'Адрес Формат _ред14.01.2018'!$C17) -> 0 | O17: =SUMIFS(Таблица1[Сумма],Таблица1[ЦФО],'Адрес Формат _ред14.01.2018'!$E17,Таблица1[Объект],'Адрес Формат _ред14.01.2018'!$D17,Таблица1[Период],">="&O$1,Таблица1[Период],"<="&O$2,Таблица1[Организация],'Адрес Формат _ред14.01.2018'!$C17) -> 0 | P17: =SUMIFS(Таблица1[Сумма],Таблица1[ЦФО],'Адрес Формат _ред14.01.2018'!$E17,Таблица1[Объект],'Адрес Формат _ред14.01.2018'!$D17,Таблица1[Период],">="&P$1,Таблица1[Период],"<="&P$2,Таблица1[Организация],'Адрес Формат _ред14.01.2018'!$C17) -> 0 | Q17: =SUMIFS(Таблица1[Сумма],Таблица1[ЦФО],'Адрес Формат _ред14.01.2018'!$E17,Таблица1[Объект],'Адрес Формат _ред14.01.2018'!$D17,Таблица1[Период],">="&Q$1,Таблица1[Период],"<="&Q$2,Таблица1[Организация],'Адрес Формат _ред14.01.2018'!$C17) -> 0 | R17: 1000
C18: Орг 2 | D18: Объект 1 | E18: Тендерный отдел | F18: =SUMIFS('2018'!$F:$F,'2018'!$B:$B,'Адрес Формат _ред14.01.2018'!$E18,'2018'!$E:$E,'Адрес Формат _ред14.01.2018'!$D18,'2018'!$G:$G,">="&F$1,'2018'!$G:$G,"<="&F$2,'2018'!$D:$D,'Адрес Формат _ред14.01.2018'!$C18) -> 40000 | G18: =SUMIFS('2018'!$F:$F,'2018'!$B:$B,'Адрес Формат _ред14.01.2018'!$E18,'2018'!$E:$E,'Адрес Формат _ред14.01.2018'!$D18,'2018'!$G:$G,">="&G$1,'2018'!$G:$G,"<="&G$2,'2018'!$D:$D,'Адрес Формат _ред14.01.2018'!$C18) -> 0 | H18: =SUMIFS('2018'!$F:$F,'2018'!$B:$B,'Адрес Формат _ред14.01.2018'!$E18,'2018'!$E:$E,'Адрес Формат _ред14.01.2018'!$D18,'2018'!$G:$G,">="&H$1,'2018'!$G:$G,"<="&H$2,'2018'!$D:$D,'Адрес Формат _ред14.01.2018'!$C18) -> 0 | I18: =SUMIFS(Таблица1[Сумма],Таблица1[ЦФО],'Адрес Формат _ред14.01.2018'!$E18,Таблица1[Объект],'Адрес Формат _ред14.01.2018'!$D18,Таблица1[Период],">="&I$1,Таблица1[Период],"<="&I$2,Таблица1[Организация],'Адрес Формат _ред14.01.2018'!$C18) -> 0 | J18: =SUMIFS(Таблица1[Сумма],Таблица1[ЦФО],'Адрес Формат _ред14.01.2018'!$E18,Таблица1[Объект],'Адрес Формат _ред14.01.2018'!$D18,Таблица1[Период],">="&J$1,Таблица1[Период],"<="&J$2,Таблица1[Организация],'Адрес Формат _ред14.01.2018'!$C18) -> 0 | K18: =SUMIFS(Таблица1[Сумма],Таблица1[ЦФО],'Адрес Формат _ред14.01.2018'!$E18,Таблица1[Объект],'Адрес Формат _ред14.01.2018'!$D18,Таблица1[Период],">="&K$1,Таблица1[Период],"<="&K$2,Таблица1[Организация],'Адрес Формат _ред14.01.2018'!$C18) -> 0 | L18: =SUMIFS(Таблица1[Сумма],Таблица1[ЦФО],'Адрес Формат _ред14.01.2018'!$E18,Таблица1[Объект],'Адрес Формат _ред14.01.2018'!$D18,Таблица1[Период],">="&L$1,Таблица1[Период],"<="&L$2,Таблица1[Организация],'Адрес Формат _ред14.01.2018'!$C18) -> 0 | M18: =SUMIFS(Таблица1[Сумма],Таблица1[ЦФО],'Адрес Формат _ред14.01.2018'!$E18,Таблица1[Объект],'Адрес Формат _ред14.01.2018'!$D18,Таблица1[Период],">="&M$1,Таблица1[Период],"<="&M$2,Таблица1[Организация],'Адрес Формат _ред14.01.2018'!$C18) -> 0 | N18: =SUMIFS(Таблица1[Сумма],Таблица1[ЦФО],'Адрес Формат _ред14.01.2018'!$E18,Таблица1[Объект],'Адрес Формат _ред14.01.2018'!$D18,Таблица1[Период],">="&N$1,Таблица1[Период],"<="&N$2,Таблица1[Организация],'Адрес Формат _ред14.01.2018'!$C18) -> 0 | O18: =SUMIFS(Таблица1[Сумма],Таблица1[ЦФО],'Адрес Формат _ред14.01.2018'!$E18,Таблица1[Объект],'Адрес Формат _ред14.01.2018'!$D18,Таблица1[Период],">="&O$1,Таблица1[Период],"<="&O$2,Таблица1[Организация],'Адрес Формат _ред14.01.2018'!$C18) -> 0 | P18: =SUMIFS(Таблица1[Сумма],Таблица1[ЦФО],'Адрес Формат _ред14.01.2018'!$E18,Таблица1[Объект],'Адрес Формат _ред14.01.2018'!$D18,Таблица1[Период],">="&P$1,Таблица1[Период],"<="&P$2,Таблица1[Организация],'Адрес Формат _ред14.01.2018'!$C18) -> 0 | Q18: =SUMIFS(Таблица1[Сумма],Таблица1[ЦФО],'Адрес Формат _ред14.01.2018'!$E18,Таблица1[Объект],'Адрес Формат _ред14.01.2018'!$D18,Таблица1[Период],">="&Q$1,Таблица1[Период],"<="&Q$2,Таблица1[Организация],'Адрес Формат _ред14.01.2018'!$C18) -> 0 | R18: 40000
C19: Орг 2 | D19: Объект 1 | E19: СМР | F19: =SUMIFS('2018'!$F:$F,'2018'!$B:$B,'Адрес Формат _ред14.01.2018'!$E19,'2018'!$E:$E,'Адрес Формат _ред14.01.2018'!$D19,'2018'!$G:$G,">="&F$1,'2018'!$G:$G,"<="&F$2,'2018'!$D:$D,'Адрес Формат _ред14.01.2018'!$C19) -> 0 | G19: =SUMIFS('2018'!$F:$F,'2018'!$B:$B,'Адрес Формат _ред14.01.2018'!$E19,'2018'!$E:$E,'Адрес Формат _ред14.01.2018'!$D19,'2018'!$G:$G,">="&G$1,'2018'!$G:$G,"<="&G$2,'2018'!$D:$D,'Адрес Формат _ред14.01.2018'!$C19) -> 0 | H19: =SUMIFS('2018'!$F:$F,'2018'!$B:$B,'Адрес Формат _ред14.01.2018'!$E19,'2018'!$E:$E,'Адрес Формат _ред14.01.2018'!$D19,'2018'!$G:$G,">="&H$1,'2018'!$G:$G,"<="&H$2,'2018'!$D:$D,'Адрес Формат _ред14.01.2018'!$C19) -> 0 | I19: =SUMIFS(Таблица1[Сумма],Таблица1[ЦФО],'Адрес Формат _ред14.01.2018'!$E19,Таблица1[Объект],'Адрес Формат _ред14.01.2018'!$D19,Таблица1[Период],">="&I$1,Таблица1[Период],"<="&I$2,Таблица1[Организация],'Адрес Формат _ред14.01.2018'!$C19) -> 0 | J19: =SUMIFS(Таблица1[Сумма],Таблица1[ЦФО],'Адрес Формат _ред14.01.2018'!$E19,Таблица1[Объект],'Адрес Формат _ред14.01.2018'!$D19,Таблица1[Период],">="&J$1,Таблица1[Период],"<="&J$2,Таблица1[Организация],'Адрес Формат _ред14.01.2018'!$C19) -> 0 | K19: =SUMIFS(Таблица1[Сумма],Таблица1[ЦФО],'Адрес Формат _ред14.01.2018'!$E19,Таблица1[Объект],'Адрес Формат _ред14.01.2018'!$D19,Таблица1[Период],">="&K$1,Таблица1[Период],"<="&K$2,Таблица1[Организация],'Адрес Формат _ред14.01.2018'!$C19) -> 0 | L19: =SUMIFS(Таблица1[Сумма],Таблица1[ЦФО],'Адрес Формат _ред14.01.2018'!$E19,Таблица1[Объект],'Адрес Формат _ред14.01.2018'!$D19,Таблица1[Период],">="&L$1,Таблица1[Период],"<="&L$2,Таблица1[Организация],'Адрес Формат _ред14.01.2018'!$C19) -> 0 | M19: =SUMIFS(Таблица1[Сумма],Таблица1[ЦФО],'Адрес Формат _ред14.01.2018'!$E19,Таблица1[Объект],'Адрес Формат _ред14.01.2018'!$D19,Таблица1[Период],">="&M$1,Таблица1[Период],"<="&M$2,Таблица1[Организация],'Адрес Формат _ред14.01.2018'!$C19) -> 167880.5 | N19: =SUMIFS(Таблица1[Сумма],Таблица1[ЦФО],'Адрес Формат _ред14.01.2018'!$E19,Таблица1[Объект],'Адрес Формат _ред14.01.2018'!$D19,Таблица1[Период],">="&N$1,Таблица1[Период],"<="&N$2,Таблица1[Организация],'Адрес Формат _ред14.01.2018'!$C19) -> 0 | O19: =SUMIFS(Таблица1[Сумма],Таблица1[ЦФО],'Адрес Формат _ред14.01.2018'!$E19,Таблица1[Объект],'Адрес Формат _ред14.01.2018'!$D19,Таблица1[Период],">="&O$1,Таблица1[Период],"<="&O$2,Таблица1[Организация],'Адрес Формат _ред14.01.2018'!$C19) -> 0 | P19: =SUMIFS(Таблица1[Сумма],Таблица1[ЦФО],'Адрес Формат _ред14.01.2018'!$E19,Таблица1[Объект],'Адрес Формат _ред14.01.2018'!$D19,Таблица1[Период],">="&P$1,Таблица1[Период],"<="&P$2,Таблица1[Организация],'Адрес Формат _ред14.01.2018'!$C19) -> 0 | Q19: =SUMIFS(Таблица1[Сумма],Таблица1[ЦФО],'Адрес Формат _ред14.01.2018'!$E19,Таблица1[Объект],'Адрес Формат _ред14.01.2018'!$D19,Таблица1[Период],">="&Q$1,Таблица1[Период],"<="&Q$2,Таблица1[Организация],'Адрес Формат _ред14.01.2018'!$C19) -> 0 | R19: 167880.5
C20: Орг 2 | D20: Объект 1 | E20: отдел 1 | F20: =SUMIFS('2018'!$F:$F,'2018'!$B:$B,'Адрес Формат _ред14.01.2018'!$E20,'2018'!$E:$E,'Адрес Формат _ред14.01.2018'!$D20,'2018'!$G:$G,">="&F$1,'2018'!$G:$G,"<="&F$2,'2018'!$D:$D,'Адрес Формат _ред14.01.2018'!$C20) -> 0 | G20: =SUMIFS('2018'!$F:$F,'2018'!$B:$B,'Адрес Формат _ред14.01.2018'!$E20,'2018'!$E:$E,'Адрес Формат _ред14.01.2018'!$D20,'2018'!$G:$G,">="&G$1,'2018'!$G:$G,"<="&G$2,'2018'!$D:$D,'Адрес Формат _ред14.01.2018'!$C20) -> 0 | H20: =SUMIFS('2018'!$F:$F,'2018'!$B:$B,'Адрес Формат _ред14.01.2018'!$E20,'2018'!$E:$E,'Адрес Формат _ред14.01.2018'!$D20,'2018'!$G:$G,">="&H$1,'2018'!$G:$G,"<="&H$2,'2018'!$D:$D,'Адрес Формат _ред14.01.2018'!$C20) -> 0 | I20: =SUMIFS(Таблица1[Сумма],Таблица1[ЦФО],'Адрес Формат _ред14.01.2018'!$E20,Таблица1[Объект],'Адрес Формат _ред14.01.2018'!$D20,Таблица1[Период],">="&I$1,Таблица1[Период],"<="&I$2,Таблица1[Организация],'Адрес Формат _ред14.01.2018'!$C20) -> 0 | J20: =SUMIFS(Таблица1[Сумма],Таблица1[ЦФО],'Адрес Формат _ред14.01.2018'!$E20,Таблица1[Объект],'Адрес Формат _ред14.01.2018'!$D20,Таблица1[Период],">="&J$1,Таблица1[Период],"<="&J$2,Таблица1[Организация],'Адрес Формат _ред14.01.2018'!$C20) -> 0 | K20: =SUMIFS(Таблица1[Сумма],Таблица1[ЦФО],'Адрес Формат _ред14.01.2018'!$E20,Таблица1[Объект],'Адрес Формат _ред14.01.2018'!$D20,Таблица1[Период],">="&K$1,Таблица1[Период],"<="&K$2,Таблица1[Организация],'Адрес Формат _ред14.01.2018'!$C20) -> 0 | L20: =SUMIFS(Таблица1[Сумма],Таблица1[ЦФО],'Адрес Формат _ред14.01.2018'!$E20,Таблица1[Объект],'Адрес Формат _ред14.01.2018'!$D20,Таблица1[Период],">="&L$1,Таблица1[Период],"<="&L$2,Таблица1[Организация],'Адрес Формат _ред14.01.2018'!$C20) -> 0 | M20: =SUMIFS(Таблица1[Сумма],Таблица1[ЦФО],'Адрес Формат _ред14.01.2018'!$E20,Таблица1[Объект],'Адрес Формат _ред14.01.2018'!$D20,Таблица1[Период],">="&M$1,Таблица1[Период],"<="&M$2,Таблица1[Организация],'Адрес Формат _ред14.01.2018'!$C20) -> 0 | N20: =SUMIFS(Таблица1[Сумма],Таблица1[ЦФО],'Адрес Формат _ред14.01.2018'!$E20,Таблица1[Объект],'Адрес Формат _ред14.01.2018'!$D20,Таблица1[Период],">="&N$1,Таблица1[Период],"<="&N$2,Таблица1[Организация],'Адрес Формат _ред14.01.2018'!$C20) -> 0 | O20: =SUMIFS(Таблица1[Сумма],Таблица1[ЦФО],'Адрес Формат _ред14.01.2018'!$E20,Таблица1[Объект],'Адрес Формат _ред14.01.2018'!$D20,Таблица1[Период],">="&O$1,Таблица1[Период],"<="&O$2,Таблица1[Организация],'Адрес Формат _ред14.01.2018'!$C20) -> 0 | P20: =SUMIFS(Таблица1[Сумма],Таблица1[ЦФО],'Адрес Формат _ред14.01.2018'!$E20,Таблица1[Объект],'Адрес Формат _ред14.01.2018'!$D20,Таблица1[Период],">="&P$1,Таблица1[Период],"<="&P$2,Таблица1[Организация],'Адрес Формат _ред14.01.2018'!$C20) -> 0 | Q20: =SUMIFS(Таблица1[Сумма],Таблица1[ЦФО],'Адрес Формат _ред14.01.2018'!$E20,Таблица1[Объект],'Адрес Формат _ред14.01.2018'!$D20,Таблица1[Период],">="&Q$1,Таблица1[Период],"<="&Q$2,Таблица1[Организация],'Адрес Формат _ред14.01.2018'!$C20) -> 51400 | R20: 51400
C21: Орг 2 | D21: Объект 2 | E21: Налоги | F21: =SUMIFS('2018'!$F:$F,'2018'!$B:$B,'Адрес Формат _ред14.01.2018'!$E21,'2018'!$E:$E,'Адрес Формат _ред14.01.2018'!$D21,'2018'!$G:$G,">="&F$1,'2018'!$G:$G,"<="&F$2,'2018'!$D:$D,'Адрес Формат _ред14.01.2018'!$C21) -> 864024.42 | G21: =SUMIFS('2018'!$F:$F,'2018'!$B:$B,'Адрес Формат _ред14.01.2018'!$E21,'2018'!$E:$E,'Адрес Формат _ред14.01.2018'!$D21,'2018'!$G:$G,">="&G$1,'2018'!$G:$G,"<="&G$2,'2018'!$D:$D,'Адрес Формат _ред14.01.2018'!$C21) -> 0 | H21: =SUMIFS('2018'!$F:$F,'2018'!$B:$B,'Адрес Формат _ред14.01.2018'!$E21,'2018'!$E:$E,'Адрес Формат _ред14.01.2018'!$D21,'2018'!$G:$G,">="&H$1,'2018'!$G:$G,"<="&H$2,'2018'!$D:$D,'Адрес Формат _ред14.01.2018'!$C21) -> 0 | I21: =SUMIFS(Таблица1[Сумма],Таблица1[ЦФО],'Адрес Формат _ред14.01.2018'!$E21,Таблица1[Объект],'Адрес Формат _ред14.01.2018'!$D21,Таблица1[Период],">="&I$1,Таблица1[Период],"<="&I$2,Таблица1[Организация],'Адрес Формат _ред14.01.2018'!$C21) -> 0 | J21: =SUMIFS(Таблица1[Сумма],Таблица1[ЦФО],'Адрес Формат _ред14.01.2018'!$E21,Таблица1[Объект],'Адрес Формат _ред14.01.2018'!$D21,Таблица1[Период],">="&J$1,Таблица1[Период],"<="&J$2,Таблица1[Организация],'Адрес Формат _ред14.01.2018'!$C21) -> 0 | K21: =SUMIFS(Таблица1[Сумма],Таблица1[ЦФО],'Адрес Формат _ред14.01.2018'!$E21,Таблица1[Объект],'Адрес Формат _ред14.01.2018'!$D21,Таблица1[Период],">="&K$1,Таблица1[Период],"<="&K$2,Таблица1[Организация],'Адрес Формат _ред14.01.2018'!$C21) -> 0 | L21: =SUMIFS(Таблица1[Сумма],Таблица1[ЦФО],'Адрес Формат _ред14.01.2018'!$E21,Таблица1[Объект],'Адрес Формат _ред14.01.2018'!$D21,Таблица1[Период],">="&L$1,Таблица1[Период],"<="&L$2,Таблица1[Организация],'Адрес Формат _ред14.01.2018'!$C21) -> 0 | M21: =SUMIFS(Таблица1[Сумма],Таблица1[ЦФО],'Адрес Формат _ред14.01.2018'!$E21,Таблица1[Объект],'Адрес Формат _ред14.01.2018'!$D21,Таблица1[Период],">="&M$1,Таблица1[Период],"<="&M$2,Таблица1[Организация],'Адрес Формат _ред14.01.2018'!$C21) -> 0 | N21: =SUMIFS(Таблица1[Сумма],Таблица1[ЦФО],'Адрес Формат _ред14.01.2018'!$E21,Таблица1[Объект],'Адрес Формат _ред14.01.2018'!$D21,Таблица1[Период],">="&N$1,Таблица1[Период],"<="&N$2,Таблица1[Организация],'Адрес Формат _ред14.01.2018'!$C21) -> 0 | O21: =SUMIFS(Таблица1[Сумма],Таблица1[ЦФО],'Адрес Формат _ред14.01.2018'!$E21,Таблица1[Объект],'Адрес Формат _ред14.01.2018'!$D21,Таблица1[Период],">="&O$1,Таблица1[Период],"<="&O$2,Таблица1[Организация],'Адрес Формат _ред14.01.2018'!$C21) -> 0 | P21: =SUMIFS(Таблица1[Сумма],Таблица1[ЦФО],'Адрес Формат _ред14.01.2018'!$E21,Таблица1[Объект],'Адрес Формат _ред14.01.2018'!$D21,Таблица1[Период],">="&P$1,Таблица1[Период],"<="&P$2,Таблица1[Организация],'Адрес Формат _ред14.01.2018'!$C21) -> 0 | Q21: =SUMIFS(Таблица1[Сумма],Таблица1[ЦФО],'Адрес Формат _ред14.01.2018'!$E21,Таблица1[Объект],'Адрес Формат _ред14.01.2018'!$D21,Таблица1[Период],">="&Q$1,Таблица1[Период],"<="&Q$2,Таблица1[Организация],'Адрес Формат _ред14.01.2018'!$C21) -> 0 | R21: 864024.42
C22: Орг 2 | D22: Объект 2 | E22: Заработная плата ИТР | F22: =SUMIFS('2018'!$F:$F,'2018'!$B:$B,'Адрес Формат _ред14.01.2018'!$E22,'2018'!$E:$E,'Адрес Формат _ред14.01.2018'!$D22,'2018'!$G:$G,">="&F$1,'2018'!$G:$G,"<="&F$2,'2018'!$D:$D,'Адрес Формат _ред14.01.2018'!$C22) -> 0 | G22: =SUMIFS('2018'!$F:$F,'2018'!$B:$B,'Адрес Формат _ред14.01.2018'!$E22,'2018'!$E:$E,'Адрес Формат _ред14.01.2018'!$D22,'2018'!$G:$G,">="&G$1,'2018'!$G:$G,"<="&G$2,'2018'!$D:$D,'Адрес Формат _ред14.01.2018'!$C22) -> 0 | H22: =SUMIFS('2018'!$F:$F,'2018'!$B:$B,'Адрес Формат _ред14.01.2018'!$E22,'2018'!$E:$E,'Адрес Формат _ред14.01.2018'!$D22,'2018'!$G:$G,">="&H$1,'2018'!$G:$G,"<="&H$2,'2018'!$D:$D,'Адрес Формат _ред14.01.2018'!$C22) -> 0 | I22: =SUMIFS(Таблица1[Сумма],Таблица1[ЦФО],'Адрес Формат _ред14.01.2018'!$E22,Таблица1[Объект],'Адрес Формат _ред14.01.2018'!$D22,Таблица1[Период],">="&I$1,Таблица1[Период],"<="&I$2,Таблица1[Организация],'Адрес Формат _ред14.01.2018'!$C22) -> 254444 | J22: =SUMIFS(Таблица1[Сумма],Таблица1[ЦФО],'Адрес Формат _ред14.01.2018'!$E22,Таблица1[Объект],'Адрес Формат _ред14.01.2018'!$D22,Таблица1[Период],">="&J$1,Таблица1[Период],"<="&J$2,Таблица1[Организация],'Адрес Формат _ред14.01.2018'!$C22) -> 0 | K22: =SUMIFS(Таблица1[Сумма],Таблица1[ЦФО],'Адрес Формат _ред14.01.2018'!$E22,Таблица1[Объект],'Адрес Формат _ред14.01.2018'!$D22,Таблица1[Период],">="&K$1,Таблица1[Период],"<="&K$2,Таблица1[Организация],'Адрес Формат _ред14.01.2018'!$C22) -> 0 | L22: =SUMIFS(Таблица1[Сумма],Таблица1[ЦФО],'Адрес Формат _ред14.01.2018'!$E22,Таблица1[Объект],'Адрес Формат _ред14.01.2018'!$D22,Таблица1[Период],">="&L$1,Таблица1[Период],"<="&L$2,Таблица1[Организация],'Адрес Формат _ред14.01.2018'!$C22) -> 0 | M22: =SUMIFS(Таблица1[Сумма],Таблица1[ЦФО],'Адрес Формат _ред14.01.2018'!$E22,Таблица1[Объект],'Адрес Формат _ред14.01.2018'!$D22,Таблица1[Период],">="&M$1,Таблица1[Период],"<="&M$2,Таблица1[Организация],'Адрес Формат _ред14.01.2018'!$C22) -> 0 | N22: =SUMIFS(Таблица1[Сумма],Таблица1[ЦФО],'Адрес Формат _ред14.01.2018'!$E22,Таблица1[Объект],'Адрес Формат _ред14.01.2018'!$D22,Таблица1[Период],">="&N$1,Таблица1[Период],"<="&N$2,Таблица1[Организация],'Адрес Формат _ред14.01.2018'!$C22) -> 0 | O22: =SUMIFS(Таблица1[Сумма],Таблица1[ЦФО],'Адрес Формат _ред14.01.2018'!$E22,Таблица1[Объект],'Адрес Формат _ред14.01.2018'!$D22,Таблица1[Период],">="&O$1,Таблица1[Период],"<="&O$2,Таблица1[Организация],'Адрес Формат _ред14.01.2018'!$C22) -> 0 | P22: =SUMIFS(Таблица1[Сумма],Таблица1[ЦФО],'Адрес Формат _ред14.01.2018'!$E22,Таблица1[Объект],'Адрес Формат _ред14.01.2018'!$D22,Таблица1[Период],">="&P$1,Таблица1[Период],"<="&P$2,Таблица1[Организация],'Адрес Формат _ред14.01.2018'!$C22) -> 0 | Q22: =SUMIFS(Таблица1[Сумма],Таблица1[ЦФО],'Адрес Формат _ред14.01.2018'!$E22,Таблица1[Объект],'Адрес Формат _ред14.01.2018'!$D22,Таблица1[Период],">="&Q$1,Таблица1[Период],"<="&Q$2,Таблица1[Организация],'Адрес Формат _ред14.01.2018'!$C22) -> 0 | R22: 254444
C23: Орг 2 | D23: Объект 2 | E23: Тендерный отдел | F23: =SUMIFS('2018'!$F:$F,'2018'!$B:$B,'Адрес Формат _ред14.01.2018'!$E23,'2018'!$E:$E,'Адрес Формат _ред14.01.2018'!$D23,'2018'!$G:$G,">="&F$1,'2018'!$G:$G,"<="&F$2,'2018'!$D:$D,'Адрес Формат _ред14.01.2018'!$C23) -> 0 | G23: =SUMIFS('2018'!$F:$F,'2018'!$B:$B,'Адрес Формат _ред14.01.2018'!$E23,'2018'!$E:$E,'Адрес Формат _ред14.01.2018'!$D23,'2018'!$G:$G,">="&G$1,'2018'!$G:$G,"<="&G$2,'2018'!$D:$D,'Адрес Формат _ред14.01.2018'!$C23) -> 0 | H23: =SUMIFS('2018'!$F:$F,'2018'!$B:$B,'Адрес Формат _ред14.01.2018'!$E23,'2018'!$E:$E,'Адрес Формат _ред14.01.2018'!$D23,'2018'!$G:$G,">="&H$1,'2018'!$G:$G,"<="&H$2,'2018'!$D:$D,'Адрес Формат _ред14.01.2018'!$C23) -> 0 | I23: =SUMIFS(Таблица1[Сумма],Таблица1[ЦФО],'Адрес Формат _ред14.01.2018'!$E23,Таблица1[Объект],'Адрес Формат _ред14.01.2018'!$D23,Таблица1[Период],">="&I$1,Таблица1[Период],"<="&I$2,Таблица1[Организация],'Адрес Формат _ред14.01.2018'!$C23) -> 0 | J23: =SUMIFS(Таблица1[Сумма],Таблица1[ЦФО],'Адрес Формат _ред14.01.2018'!$E23,Таблица1[Объект],'Адрес Формат _ред14.01.2018'!$D23,Таблица1[Период],">="&J$1,Таблица1[Период],"<="&J$2,Таблица1[Организация],'Адрес Формат _ред14.01.2018'!$C23) -> 0 | K23: =SUMIFS(Таблица1[Сумма],Таблица1[ЦФО],'Адрес Формат _ред14.01.2018'!$E23,Таблица1[Объект],'Адрес Формат _ред14.01.2018'!$D23,Таблица1[Период],">="&K$1,Таблица1[Период],"<="&K$2,Таблица1[Организация],'Адрес Формат _ред14.01.2018'!$C23) -> 0 | L23: =SUMIFS(Таблица1[Сумма],Таблица1[ЦФО],'Адрес Формат _ред14.01.2018'!$E23,Таблица1[Объект],'Адрес Формат _ред14.01.2018'!$D23,Таблица1[Период],">="&L$1,Таблица1[Период],"<="&L$2,Таблица1[Организация],'Адрес Формат _ред14.01.2018'!$C23) -> 0 | M23: =SUMIFS(Таблица1[Сумма],Таблица1[ЦФО],'Адрес Формат _ред14.01.2018'!$E23,Таблица1[Объект],'Адрес Формат _ред14.01.2018'!$D23,Таблица1[Период],">="&M$1,Таблица1[Период],"<="&M$2,Таблица1[Организация],'Адрес Формат _ред14.01.2018'!$C23) -> 0 | N23: =SUMIFS(Таблица1[Сумма],Таблица1[ЦФО],'Адрес Формат _ред14.01.2018'!$E23,Таблица1[Объект],'Адрес Формат _ред14.01.2018'!$D23,Таблица1[Период],">="&N$1,Таблица1[Период],"<="&N$2,Таблица1[Организация],'Адрес Формат _ред14.01.2018'!$C23) -> 0 | O23: =SUMIFS(Таблица1[Сумма],Таблица1[ЦФО],'Адрес Формат _ред14.01.2018'!$E23,Таблица1[Объект],'Адрес Формат _ред14.01.2018'!$D23,Таблица1[Период],">="&O$1,Таблица1[Период],"<="&O$2,Таблица1[Организация],'Адрес Формат _ред14.01.2018'!$C23) -> 0 | P23: =SUMIFS(Таблица1[Сумма],Таблица1[ЦФО],'Адрес Формат _ред14.01.2018'!$E23,Таблица1[Объект],'Адрес Формат _ред14.01.2018'!$D23,Таблица1[Период],">="&P$1,Таблица1[Период],"<="&P$2,Таблица1[Организация],'Адрес Формат _ред14.01.2018'!$C23) -> 324000 | Q23: =SUMIFS(Таблица1[Сумма],Таблица1[ЦФО],'Адрес Формат _ред14.01.2018'!$E23,Таблица1[Объект],'Адрес Формат _ред14.01.2018'!$D23,Таблица1[Период],">="&Q$1,Таблица1[Период],"<="&Q$2,Таблица1[Организация],'Адрес Формат _ред14.01.2018'!$C23) -> 0 | R23: =SUM(F23:Q23) -> 324000
C24: Орг 2 | D24: Объект 2 | E24: СМР | F24: =SUMIFS('2018'!$F:$F,'2018'!$B:$B,'Адрес Формат _ред14.01.2018'!$E24,'2018'!$E:$E,'Адрес Формат _ред14.01.2018'!$D24,'2018'!$G:$G,">="&F$1,'2018'!$G:$G,"<="&F$2,'2018'!$D:$D,'Адрес Формат _ред14.01.2018'!$C24) -> 128914 | G24: =SUMIFS('2018'!$F:$F,'2018'!$B:$B,'Адрес Формат _ред14.01.2018'!$E24,'2018'!$E:$E,'Адрес Формат _ред14.01.2018'!$D24,'2018'!$G:$G,">="&G$1,'2018'!$G:$G,"<="&G$2,'2018'!$D:$D,'Адрес Формат _ред14.01.2018'!$C24) -> 0 | H24: =SUMIFS('2018'!$F:$F,'2018'!$B:$B,'Адрес Формат _ред14.01.2018'!$E24,'2018'!$E:$E,'Адрес Формат _ред14.01.2018'!$D24,'2018'!$G:$G,">="&H$1,'2018'!$G:$G,"<="&H$2,'2018'!$D:$D,'Адрес Формат _ред14.01.2018'!$C24) -> 0 | I24: =SUMIFS(Таблица1[Сумма],Таблица1[ЦФО],'Адрес Формат _ред14.01.2018'!$E24,Таблица1[Объект],'Адрес Формат _ред14.01.2018'!$D24,Таблица1[Период],">="&I$1,Таблица1[Период],"<="&I$2,Таблица1[Организация],'Адрес Формат _ред14.01.2018'!$C24) -> 0 | J24: =SUMIFS(Таблица1[Сумма],Таблица1[ЦФО],'Адрес Формат _ред14.01.2018'!$E24,Таблица1[Объект],'Адрес Формат _ред14.01.2018'!$D24,Таблица1[Период],">="&J$1,Таблица1[Период],"<="&J$2,Таблица1[Организация],'Адрес Формат _ред14.01.2018'!$C24) -> 0 | K24: =SUMIFS(Таблица1[Сумма],Таблица1[ЦФО],'Адрес Формат _ред14.01.2018'!$E24,Таблица1[Объект],'Адрес Формат _ред14.01.2018'!$D24,Таблица1[Период],">="&K$1,Таблица1[Период],"<="&K$2,Таблица1[Организация],'Адрес Формат _ред14.01.2018'!$C24) -> 0 | L24: =SUMIFS(Таблица1[Сумма],Таблица1[ЦФО],'Адрес Формат _ред14.01.2018'!$E24,Таблица1[Объект],'Адрес Формат _ред14.01.2018'!$D24,Таблица1[Период],">="&L$1,Таблица1[Период],"<="&L$2,Таблица1[Организация],'Адрес Формат _ред14.01.2018'!$C24) -> 0 | M24: =SUMIFS(Таблица1[Сумма],Таблица1[ЦФО],'Адрес Формат _ред14.01.2018'!$E24,Таблица1[Объект],'Адрес Формат _ред14.01.2018'!$D24,Таблица1[Период],">="&M$1,Таблица1[Период],"<="&M$2,Таблица1[Организация],'Адрес Формат _ред14.01.2018'!$C24) -> 0 | N24: =SUMIFS(Таблица1[Сумма],Таблица1[ЦФО],'Адрес Формат _ред14.01.2018'!$E24,Таблица1[Объект],'Адрес Формат _ред14.01.2018'!$D24,Таблица1[Период],">="&N$1,Таблица1[Период],"<="&N$2,Таблица1[Организация],'Адрес Формат _ред14.01.2018'!$C24) -> 0 | O24: =SUMIFS(Таблица1[Сумма],Таблица1[ЦФО],'Адрес Формат _ред14.01.2018'!$E24,Таблица1[Объект],'Адрес Формат _ред14.01.2018'!$D24,Таблица1[Период],">="&O$1,Таблица1[Период],"<="&O$2,Таблица1[Организация],'Адрес Формат _ред14.01.2018'!$C24) -> 0 | P24: =SUMIFS(Таблица1[Сумма],Таблица1[ЦФО],'Адрес Формат _ред14.01.2018'!$E24,Таблица1[Объект],'Адрес Формат _ред14.01.2018'!$D24,Таблица1[Период],">="&P$1,Таблица1[Период],"<="&P$2,Таблица1[Организация],'Адрес Формат _ред14.01.2018'!$C24) -> 0 | Q24: =SUMIFS(Таблица1[Сумма],Таблица1[ЦФО],'Адрес Формат _ред14.01.2018'!$E24,Таблица1[Объект],'Адрес Формат _ред14.01.2018'!$D24,Таблица1[Период],">="&Q$1,Таблица1[Период],"<="&Q$2,Таблица1[Организация],'Адрес Формат _ред14.01.2018'!$C24) -> 0 | R24: =SUM(F24:Q24) -> 128914
C25: Орг 2 | D25: Объект 2 | E25: отдел 1 | F25: =SUMIFS('2018'!$F:$F,'2018'!$B:$B,'Адрес Формат _ред14.01.2018'!$E25,'2018'!$E:$E,'Адрес Формат _ред14.01.2018'!$D25,'2018'!$G:$G,">="&F$1,'2018'!$G:$G,"<="&F$2,'2018'!$D:$D,'Адрес Формат _ред14.01.2018'!$C25) -> 0 | G25: =SUMIFS('2018'!$F:$F,'2018'!$B:$B,'Адрес Формат _ред14.01.2018'!$E25,'2018'!$E:$E,'Адрес Формат _ред14.01.2018'!$D25,'2018'!$G:$G,">="&G$1,'2018'!$G:$G,"<="&G$2,'2018'!$D:$D,'Адрес Формат _ред14.01.2018'!$C25) -> 0 | H25: =SUMIFS('2018'!$F:$F,'2018'!$B:$B,'Адрес Формат _ред14.01.2018'!$E25,'2018'!$E:$E,'Адрес Формат _ред14.01.2018'!$D25,'2018'!$G:$G,">="&H$1,'2018'!$G:$G,"<="&H$2,'2018'!$D:$D,'Адрес Формат _ред14.01.2018'!$C25) -> 0 | I25: =SUMIFS(Таблица1[Сумма],Таблица1[ЦФО],'Адрес Формат _ред14.01.2018'!$E25,Таблица1[Объект],'Адрес Формат _ред14.01.2018'!$D25,Таблица1[Период],">="&I$1,Таблица1[Период],"<="&I$2,Таблица1[Организация],'Адрес Формат _ред14.01.2018'!$C25) -> 0 | J25: =SUMIFS(Таблица1[Сумма],Таблица1[ЦФО],'Адрес Формат _ред14.01.2018'!$E25,Таблица1[Объект],'Адрес Формат _ред14.01.2018'!$D25,Таблица1[Период],">="&J$1,Таблица1[Период],"<="&J$2,Таблица1[Организация],'Адрес Формат _ред14.01.2018'!$C25) -> 0 | K25: =SUMIFS(Таблица1[Сумма],Таблица1[ЦФО],'Адрес Формат _ред14.01.2018'!$E25,Таблица1[Объект],'Адрес Формат _ред14.01.2018'!$D25,Таблица1[Период],">="&K$1,Таблица1[Период],"<="&K$2,Таблица1[Организация],'Адрес Формат _ред14.01.2018'!$C25) -> 0 | L25: =SUMIFS(Таблица1[Сумма],Таблица1[ЦФО],'Адрес Формат _ред14.01.2018'!$E25,Таблица1[Объект],'Адрес Формат _ред14.01.2018'!$D25,Таблица1[Период],">="&L$1,Таблица1[Период],"<="&L$2,Таблица1[Организация],'Адрес Формат _ред14.01.2018'!$C25) -> 0 | M25: =SUMIFS(Таблица1[Сумма],Таблица1[ЦФО],'Адрес Формат _ред14.01.2018'!$E25,Таблица1[Объект],'Адрес Формат _ред14.01.2018'!$D25,Таблица1[Период],">="&M$1,Таблица1[Период],"<="&M$2,Таблица1[Организация],'Адрес Формат _ред14.01.2018'!$C25) -> 0 | N25: =SUMIFS(Таблица1[Сумма],Таблица1[ЦФО],'Адрес Формат _ред14.01.2018'!$E25,Таблица1[Объект],'Адрес Формат _ред14.01.2018'!$D25,Таблица1[Период],">="&N$1,Таблица1[Период],"<="&N$2,Таблица1[Организация],'Адрес Формат _ред14.01.2018'!$C25) -> 0 | O25: =SUMIFS(Таблица1[Сумма],Таблица1[ЦФО],'Адрес Формат _ред14.01.2018'!$E25,Таблица1[Объект],'Адрес Формат _ред14.01.2018'!$D25,Таблица1[Период],">="&O$1,Таблица1[Период],"<="&O$2,Таблица1[Организация],'Адрес Формат _ред14.01.2018'!$C25) -> 0 | P25: =SUMIFS(Таблица1[Сумма],Таблица1[ЦФО],'Адрес Формат _ред14.01.2018'!$E25,Таблица1[Объект],'Адрес Формат _ред14.01.2018'!$D25,Таблица1[Период],">="&P$1,Таблица1[Период],"<="&P$2,Таблица1[Организация],'Адрес Формат _ред14.01.2018'!$C25) -> 0 | Q25: =SUMIFS(Таблица1[Сумма],Таблица1[ЦФО],'Адрес Формат _ред14.01.2018'!$E25,Таблица1[Объект],'Адрес Формат _ред14.01.2018'!$D25,Таблица1[Период],">="&Q$1,Таблица1[Период],"<="&Q$2,Таблица1[Организация],'Адрес Формат _ред14.01.2018'!$C25) -> 61400 | R25: =SUM(F25:Q25) -> 61400
